{"text_format":"1","workbook":"xlsx","n_sheets":6,"sheets":["Bienvenido","Cuestionario","Indice","Tabulación","Ponderadores","P"],"not_rendered":{"charts":1,"images":2,"macros":1,"external_links":0,"defined_names":1,"comments":0,"pivot_tables":0},"unopened":[],"bounds":{"document_bytes":16777216,"sheet_cells":100000,"rows_first":2000,"rows_last":500,"rows_between":2000,"halvings":0,"cell_chars":16384,"cell_head_chars":4096},"cells_cut":0,"cells_raw":0,"read":"whole","date_system":"1900"}

{"sheet":"Bienvenido","index":0,"n_rows":14,"n_cols":3,"rows_kept":14,"cut":false,"hidden":false,"merged":[[13,2,31,18]]}
[]
[]
[]
[]
[]
[]
[]
[]
[]
[]
[]
[]
[]
[null,null,"ÍNDICE DE ELEGIBILIDAD PARA REPÚBLICA DOMINICANA"]

{"sheet":"Cuestionario","index":1,"n_rows":100,"n_cols":12,"rows_kept":100,"cut":false,"hidden":false,"merged":[[32,10,32,11],[91,1,92,1],[70,2,71,6],[72,2,73,6],[82,7,82,11],[76,2,77,6],[78,2,79,6],[80,2,81,6],[83,2,84,6],[14,2,14,6],[33,2,33,6],[48,2,48,6],[67,2,68,6],[71,7,71,8],[71,10,71,11],[68,10,68,11],[68,7,68,8],[33,7,33,11],[16,10,16,11],[18,10,18,11],[28,7,28,8],[28,10,28,11],[46,2,47,6],[47,7,47,8],[47,10,47,11],[16,7,16,8],[17,1,18,1],[17,2,18,6],[93,1,94,1],[95,1,96,1],[97,1,98,1],[99,1,100,1],[95,2,96,6],[97,2,98,6],[99,2,100,6],[69,2,69,6],[82,2,82,6],[85,2,86,6],[87,2,88,6],[89,2,90,6],[91,2,92,6],[93,2,94,6],[76,1,77,1],[78,1,79,1],[80,1,81,1],[83,1,84,1],[85,1,86,1],[87,1,88,1],[89,1,90,1],[45,7,45,8],[45,10,45,11],[46,1,47,1],[63,2,64,6],[64,7,64,8],[8,1,9,1],[8,2,9,6],[9,7,9,8],[9,10,9,11],[12,1,13,1],[12,2,13,6],[13,7,13,8],[13,10,13,11],[21,1,22,1],[21,2,22,6],[22,7,22,8],[22,10,22,11],[10,2,11,6],[10,1,11,1],[11,7,11,8],[11,10,11,11],[14,7,14,11],[15,1,16,1],[15,2,16,6],[25,2,26,6],[26,7,26,8],[26,10,26,11],[27,1,28,1],[27,2,28,6],[67,1,68,1],[70,1,71,1],[41,10,41,11],[42,1,43,1],[42,2,43,6],[43,7,43,8],[43,10,43,11],[36,1,37,1],[36,2,37,6],[37,7,37,8],[37,10,37,11],[38,1,39,1],[38,2,39,6],[39,7,39,8],[39,10,39,11],[48,7,48,11],[69,7,69,11],[44,1,45,1],[44,2,45,6],[40,1,41,1],[40,2,41,6],[41,7,41,8],[23,1,24,1],[23,2,24,6],[24,7,24,8],[24,10,24,11],[18,7,18,8],[19,2,20,6],[20,7,20,8],[20,10,20,11],[34,1,35,1],[34,2,35,6],[35,7,35,8],[35,10,35,11],[31,1,32,1],[31,2,32,6],[32,7,32,8],[19,1,20,1],[29,1,30,1],[29,2,30,6],[30,7,30,8],[30,10,30,11],[25,1,26,1],[1,1,1,5],[1,7,1,11],[3,7,3,11],[6,1,7,1],[6,2,7,6],[7,7,7,8],[7,10,7,11],[3,2,4,6],[5,2,5,6],[5,7,5,11],[72,1,73,1],[74,1,75,1],[51,1,52,1],[51,2,52,6],[52,7,52,8],[52,10,52,11],[53,1,54,1],[53,2,54,6],[54,7,54,8],[54,10,54,11],[65,1,66,1],[65,2,66,6],[66,7,66,8],[66,10,66,11],[61,1,62,1],[61,2,62,6],[62,7,62,8],[62,10,62,11],[63,1,64,1],[64,10,64,11],[74,2,75,6],[49,1,50,1],[49,2,50,6],[50,7,50,8],[50,10,50,11],[57,1,58,1],[57,2,58,6],[58,7,58,8],[58,10,58,11],[59,1,60,1],[59,2,60,6],[60,7,60,8],[60,10,60,11],[55,1,56,1],[55,2,56,6],[56,7,56,8],[56,10,56,11]]}
[]
[null,"Participante"]
[]
[null,null,"Número de \ncriterios",null,null,null,null,"Nivel de percepción"]
[null,null,null,null,null,null,null,"Poner 1 si:","Poner 2 si:","Poner 3 si:","Poner 4 si:","Poner 5 si:"]
[null,null,"CATEGORIA 1",null,null,null,null,"Nivel de prioridad del Proyecto APP para la Sociedad y el Gobierno"]
[null,"P1","Alineación con la planeación estratégica nacional",null,null,null,null,"El proyecto no es prioritario ni forma parte del plan estratégico nacional ni de mediano ni de largo plazo","El proyecto no es explícitamente prioritario ni forma parte del plan estratégico nacional, pero implícitamente podría ser parte en el largo plazo","El proyecto no es explícitamente parte del plan estratégico nacional, pero implícitamente podría hacer parte a mediano y a largo plazo","El proyecto es explícitamente parte del plan estratégico nacional, de mediano y de largo plazo","El proyecto es una prioridad y está debidamente alineado con el plan estratégico nacional, de mediano y de largo plazo"]
[null,null,null,null,null,null,null,"dsdsdsdsdsdsdsds"]
[null,"P2","Alineación con la planeación estratégica sectorial",null,null,null,null,"El proyecto no es prioritario ni forma parte del plan estratégico sectorial ni de mediano ni de largo plazo","El proyecto no es explícitamente prioritario ni forma parte del plan estratégico sectorial, pero implícitamente podría ser parte en el largo plazo","El proyecto no es explícitamente parte del plan estratégico sectorial, pero implícitamente podría hacer parte a mediano y a largo plazo","El proyecto es explícitamente parte del plan estratégico sectorial, de mediano y de largo plazo","El proyecto es una prioridad y está debidamente alineado con el plan estratégico sectorial, de mediano y de largo plazo"]
[]
[null,"P3","Generación de riqueza compartida y/o reducción de desigualdad",null,null,null,null,"El proyecto no genera riqueza compartida ni reduce desigualdad","El proyecto genera de manera limitada riqueza compartida y reduce de manera limitada la desigualdad","El proyecto genera de manera parcial riqueza compartida y reduce de manera parcial la desigualdad","El proyecto genera adecuadamente riqueza compartida y reduce adecuadamente la desigualdad","El proyecto genera de manera importante riqueza compartida y reduce de manera importante la desigualdad"]
[]
[null,"P4","Reducción de la desigualdad territorial",null,null,null,null,"El proyecto no reduce la desigualdad territorial","El proyecto reduce de manera limitada la desigualdad territorial","El proyecto reduce de manera parcial la desigualdad territorial","El proyecto reduce adecuadamente la desigualdad territorial","El proyecto reduce de manera importante la desigualdad territorial"]
[]
[null,null,"CATEGORIA 2",null,null,null,null,"Viabilidad del Proyecto APP"]
[null,"P5","Complejidad del proyecto",null,null,null,null,"El proyecto presenta niveles muy altos de complejidad en sus especificaciones técnicas, de ingeniería/arquitectura y de calidad del servicio","El proyecto presenta niveles altos de complejidad en sus especificaciones técnicas, de ingeniería/arquitectura y de calidad del servicio","El proyecto presenta niveles medianos de complejidad en sus especificaciones técnicas, de ingeniería/arquitectura y de calidad del servicio","El proyecto presenta niveles bajos de complejidad en sus especificaciones técnicas, de ingeniería/arquitectura y de calidad del servicio","El proyecto presenta niveles muy bajos de complejidad en sus especificaciones técnicas, de ingeniería/arquitectura y de calidad del servicio"]
[]
[null,"P6","Disponibilidad de recursos para financiar estudios",null,null,null,null,"El proyecto no tiene recursos para financiar los estudios necesarios para su desarrollo (preparación, estructuración y licitación)","El proyecto tiene menos del 50% de los recursos para financiar los estudios necesarios para su desarrollo (preparación, estructuración y licitación)","El proyecto tiene entre 50% y 75% de los recursos para financiar los estudios necesarios para su desarrollo (preparación, estructuración y licitación)","El proyecto tiene entre 75% y 100% de los recursos para financiar los estudios necesarios para su desarrollo (preparación, estructuración y licitación)","El proyecto tiene 100% de los recursos para financiar los estudios necesarios para su desarrollo (preparación, estructuración y licitación)"]
[]
[null,"P7","Líder del proyecto",null,null,null,null,"Es muy difícil identificar un líder (persona/institución) encargado del desarrollo del proyecto","Es difícil identificar un líder (persona/institución) encargado del desarrollo del proyecto","Es medianamente difícil identificar un líder (persona/institución) encargado del desarrollo del proyecto","Es fácil identificar un líder (persona/institución) encargado del desarrollo del proyecto","Es muy fácil identificar un líder (persona/institución) encargado del desarrollo del proyecto"]
[]
[null,"P8","Compromiso político con el proyecto",null,null,null,null,"El proyecto no recibe apoyo del tomador de decisión político y no tiene probabilidad de estar firmado antes del fin del mandato del gobierno en turno. ","El proyecto no recibe apoyo activo del tomador de decisión político y tiene poca probabilidad de estar firmado antes del fin del mandato del gobierno en turno. ","El proyecto recibe apoyo del tomador de decisión político pero no tiene probabilidad de estar firmado antes del fin del mandato del gobierno en turno","El proyecto recibe apoyo del tomador de decisión político y tiene alta probabilidad de estar firmado antes del fin del mandato del gobierno en turno","El proyecto recibe apoyo activo del tomador de decisión político y tiene muy alta probabilidad de estar firmado antes del fin del mandato del gobierno en turno"]
[]
[null,"P9","Grado de avances en los estudios",null,null,null,null,"No existen estudios previos que permiten evaluar el grado de factibilidad del proyecto","Existen algunos estudios previos pero no permiten evaluar con precisión la factibilidad del proyecto y los costos de este","Existen algunos estudios previos que permiten evaluar la factibilidad del proyecto y los costos de este con precisión mediana","Existen estudios previos que permiten evaluar la factibilidad del proyecto y los costos de este con precisión alta","Existen varios estudios previos que permiten evaluar la factibilidad del proyecto y los costos de este con precisión alta"]
[]
[null,"P10","Rechazo del proyecto por parte de los involucrados",null,null,null,null,"El proyecto genera un grado de rechazo muy alto por parte de unos involucrados a este, ya sean los usuarios, la sociedad civil y/o las comunidades afectadas","El proyecto genera un grado de rechazo alto por parte de unos involucrados a este, ya sean los usuarios, la sociedad civil y/o las comunidades afectadas","El proyecto genera un grado de rechazo mediano por parte de unos involucrados a este, ya sean los usuarios, la sociedad civil y/o las comunidades afectadas","El proyecto genera un grado de rechazo bajo por parte de unos involucrados a este, ya sean los usuarios, la sociedad civil y/o las comunidades afectadas","El proyecto genera un grado de rechazo muy bajo por parte de unos involucrados a este, ya sean los usuarios, la sociedad civil y/o las comunidades afectadas"]
[]
[null,"P11","Número de involucrados",null,null,null,null,"Hay un número muy elevado de involucrados al proyecto lo que hace que sea casi imposible generar los acuerdos para su desarrollo ","Hay un número elevado de involucrados al proyecto lo que hace que sea difícil generar los acuerdos para su desarrollo","Hay un número elevado de involucrados al proyecto sin embargo es factible generar los acuerdos para su desarrollo ","Hay un número elevado de involucrados al proyecto sin embargo no es difícil generar los acuerdos para su desarrollo","Hay un número ideal de involucrados al proyecto y es muy fácil generar los acuerdos para su desarrollo"]
[]
[null,"P12","Impacto ambiental",null,null,null,null,"El proyecto presenta un nivel de riesgo ambiental muy alto y su diseño no contribuye a disminuir los impactos ambientales","El proyecto presenta un nivel de riesgo ambiental alto y su diseño no contribuye a disminuir los impactos ambientales","El proyecto presenta un nivel de riesgo ambiental relativamente alto no obstante su diseño contribuye a disminuir los impactos ambientales","El proyecto presenta un nivel de riesgo ambiental bajo y su diseño contribuye a disminuir los impactos ambientales","El proyecto presenta un nivel de riesgo ambiental muy bajo y su diseño contribuye a disminuir los impactos ambientales"]
[]
[null,"P13","Cambio de ley y/o adquisición de terrenos",null,null,null,null,"Es necesario para el proyecto modificar varias leyes y adquirir varios terrenos (o derechos de paso) ","Es necesario para el proyecto modificar varias leyes o adquirir varios terrenos (o derechos de paso) ","Es necesario para el proyecto modificar por lo menos una ley o adquirir un terreno (o derechos de paso) ","No es necesario para el proyecto modificar leyes ni adquirir terrenos (o derechos de paso) ","No es necesario para el proyecto modificar leyes y ya se tienen 100% de los terrenos (o derechos de paso)"]
[]
[null,null,"CATEGORIA 3",null,null,null,null,"Características del proyecto adaptadas a la modalidad APP"]
[null,"P14","Tamaño del proyecto o grupos de proyectos",null,null,null,null,"El monto de inversión (CAPEX) del proyecto o grupo de proyectos es inferior a 10 millones de USD","El monto de inversión (CAPEX) del proyecto o grupo de proyectos es entre 10 y 20 millones de USD","El monto de inversión (CAPEX) del proyecto o grupo de proyectos es entre 20 y 50 millones de USD","El monto de inversión (CAPEX) del proyecto o grupo de proyectos es entre 50 y 100 millones de USD","El monto de inversión (CAPEX) del proyecto o grupo de proyectos es superior a 100 millones de USD"]
[]
[null,"P15","Tiempo de construcción del proyecto",null,null,null,null,"El tiempo de construcción del proyecto es mayor a 48 meses","El tiempo de construcción del proyecto es entre 36 y 48 meses","El tiempo de construcción del proyecto es entre 24 y 36 meses","El tiempo de construcción del proyecto es entre 18 y 24 meses","El tiempo de construcción del proyecto es inferior a 18 meses"]
[]
[null,"P16","Urgencia del proyecto",null,null,null,null,"El proyecto es muy urgente de implementar por presión política o interrupción del servicio","El proyecto es urgente de implementar por presión política o interrupción del servicio","El proyecto es medianamente urgente de implementar por presión política o interrupción del servicio","El proyecto es poco urgente de implementar por presión política o interrupción del servicio","El proyecto es muy poco urgente de implementar por presión política o interrupción del servicio"]
[]
[null,"P17","Estabilidad de la tecnología del proyecto",null,null,null,null,"El proyecto es muy intensivo en tecnologías que incurren cambios acelerados y sufren de obsolescencia rápidamente","El proyecto es intensivo en tecnologías que incurren cambios acelerados y sufren de obsolescencia rápidamente","El proyecto es medianamente intensivo en tecnologías que incurren cambios acelerados y sufren de obsolescencia rápidamente","El proyecto es poco intensivo en tecnologías que incurren cambios acelerados y sufren de obsolescencia rápidamente","El proyecto es muy poco intensivo en tecnologías que incurren cambios acelerados y sufren de obsolescencia rápidamente"]
[]
[null,"P18","Demanda de largo plazo del proyecto",null,null,null,null,"El proyecto tiene una demanda de corto plazo difícil a estimar a partir de estudios de demanda","El proyecto tiene una demanda de corto plazo relativamente fácil a estimar a partir de estudios de demanda","El proyecto tiene una demanda de largo plazo pero díficil a estimar a partir de estudios de demanda","El proyecto tiene una demanda de largo plazo fácil a estimar a partir de estudios de demanda.","El proyecto tiene una demanda estable, de largo plazo y fácil a estimar a partir de estudios de demanda"]
[]
[null,"P19","Definición de los servicios e indicadores de desempeño (KPI)",null,null,null,null,"Es muy difícil para ese proyecto definir en el contrato los servicios a proveer y formular indicadores de desempeño para controlar su calidad","Es difícil para ese proyecto definir en el contrato los servicios a proveer y formular indicadores de desempeño para controlar su calidad","Es medianamente difícil para ese proyecto definir en el contrato los servicios a proveer y formular indicadores de desempeño para controlar su calidad","No es difícil para el proyecto definir en el contrato los servicios a proveer y formular indicadores de desempeño para controlar su calidad","No hay dificultad alguna para el proyecto definir en el contrato los servicios a proveer y formular indicadores de desempeño para controlar su calidad"]
[]
[null,"P20","Independencia (interfaz) con otros proyectos",null,null,null,null,"La ejecución y operación de ese proyecto dependen fuertemente de la ejecución y/u operación de otros proyectos en desarrollo o infraestructura existente ","La ejecución y operación de ese proyecto dependen de la ejecución y/u operación de otros proyectos en desarrollo o infraestructura existente","La ejecución y operación de ese proyecto dependen medianamente de la ejecución y/u operación de otros proyectos en desarrollo o infraestructura existente","La ejecución y operación de ese proyecto dependen poco de la ejecución y/u operación de otros proyectos en desarrollo o infraestructura existente","La ejecución y operación de ese proyecto no dependen de la ejecución y/u operación de otros proyectos en desarrollo o infraestructura existente"]
[]
[null,null,"CATEGORIA 4",null,null,null,null,"Bancabilidad del proyecto APP"]
[null,"P21","Proyecto autofinanciable",null,null,null,null,"El proyecto no genera ingresos (de otra fuente que pública)","El proyecto genera ingresos (de otra fuente pública) pero insuficientes para cubrir los costos de inversión (CAPEX), operación y mantenimiento del proyecto (OPEX)","El proyecto genera ingresos (distinta a la fuente pública) suficientes para cubrir el OPEX pero insuficientes para cubrir todos los costos","En la mayor parte de los escenarios, el proyecto genera ingresos (de otra fuente distinta a la pública) suficientes para cubrir todos los costos","En todos los escenarios, el proyecto genera ingresos (de otra fuente pública) suficientes para cubrir todos los costos de CAPEX y OPEX"]
[]
[null,"P22","Clima de inversión y condiciones macroeconómicas",null,null,null,null,"El clima de inversión y las condiciones macroeconómicas son muy desfavorables","El clima de inversión y las condiciones macroeconómicas son desfavorables","El clima de inversión y las condiciones macroeconómicas son ni favorables ni desfavorables","El clima de inversión y las condiciones macroeconómicas son favorables","El clima de inversión y las condiciones macroeconómicas son muy favorables"]
[]
[null,"P23","Atractividad del proyecto para los sectores privado y financiero",null,null,null,null,"El proyecto es muy poco atractivo para los inversionistas privados y/o instituciones financieras","El proyecto es poco atractivo para los inversionistas privados y/o instituciones financieras","El proyecto es medianamente atractivo para los inversionistas privados y/o instituciones financieras","El proyecto es atractivo para los inversionistas privados y/o instituciones financieras","El proyecto es muy atractivo para los inversionistas privados y/o instituciones financieras"]
[]
[null,"P24","Atractividad del proyecto para los organismos internacionales",null,null,null,null,"El proyecto es muy poco atractivo para los organismos internacionales","El proyecto es poco atractivo para los organismos internacionales","El proyecto es medianamente atractivo para los organismos internacionales","El proyecto es atractivo para los organismos internacionales","El proyecto es muy atractivo para los organismos internacionales"]
[]
[null,"P25","Costo de financiamiento",null,null,null,null,"El costo de financiamiento esperado del proyecto es muy alto ","El costo de financiamiento esperado del proyecto es alto ","El costo de financiamiento esperado del proyecto es mediano ","El costo de financiamiento esperado del proyecto es bajo ","El costo de financiamiento esperado del proyecto es muy bajo "]
[]
[null,"P26","Capacidad de los mercados locales de capital",null,null,null,null,"En el entorno del proyecto, los mercados de capital locales son muy poco desarrollados","En el entorno del proyecto, los mercados de capital locales son poco desarrollados","En el entorno del proyecto, los mercados de capital locales son medianamente desarrollados","En el entorno del proyecto, los mercados de capital locales son desarrollados","En el entorno del proyecto, los mercados de capital locales son muy desarrollados"]
[]
[null,"P27","Impacto sobre las finanzas públicas",null,null,null,null,"El proyecto tiene un impacto muy elevado sobre las finanzas de la entidad pública, ya sea por su costo presupuestario directo y/o de los pasivos contingentes que genera","El proyecto tiene un impacto elevado sobre las finanzas de la entidad pública, ya sea por su costo presupuestario directo y/o de los pasivos contingentes que genera","El proyecto tiene un impacto mediano sobre las finanzas de la entidad pública, ya sea por su costo presupuestario directo y/o de los pasivos contingentes que genera","El proyecto tiene un impacto bajo sobre las finanzas de la entidad pública, ya sea por su costo presupuestario directo y/o de los pasivos contingentes que genera","El proyecto tiene un impacto muy bajo sobre las finanzas de la entidad pública, ya sea por su costo presupuestario directo y/o de los pasivos contingentes que genera"]
[]
[null,"P28","Experiencia del sector privado en el país",null,null,null,null,"Existe en el país un nivel muy bajo de experiencia en cuanto al desarrollo de proyectos similares por APP","Existe en el país un nivel bajo de experiencia en cuanto al desarrollo de proyectos similares por APP","Existe en el país un nivel mediano de experiencia en cuanto al desarrollo de proyectos similares por APP","Existe en el país un nivel alto de experiencia en cuanto al desarrollo de proyectos similares por APP","Existe en el país un nivel muy alto de experiencia en cuanto al desarrollo de proyectos similares por APP"]
[]
[null,"P29","Experiencia del sector privado en países semejantes",null,null,null,null,"Existe en países semejantes un nivel muy bajo de experiencia en cuanto al desarrollo de proyectos con características similares por APP","Existe en países semejantes un nivel bajo de experiencia en cuanto al desarrollo de proyectos con características similares por APP","Existe en países semejantes un nivel mediano de experiencia en cuanto al desarrollo de proyectos con características similares por APP","Existe en países semejantes un nivel alto de experiencia en cuanto al desarrollo de proyectos con características similares por APP","Existe en países semejantes un nivel muy alto de experiencia en cuanto al desarrollo de proyectos con características similares por APP"]
[]
[null,"P30","Capacidad del sector privado",null,null,null,null,"Existe un número muy bajo de empresas a nivel nacional y/o internacional que tienen la capacidad técnica y de gestión para construir la infraestructura y proveer los servicios del proyecto","Existe un número bajo de empresas a nivel nacional y/o internacional que tienen la capacidad técnica y de gestión para construir la infraestructura y proveer los servicios del proyecto","Existe un número mediano de empresas a nivel nacional y/o internacional que tienen la capacidad técnica y de gestión para construir la infraestructura y proveer los servicios del proyecto","Existe un número elevado de empresas a nivel nacional y/o internacional que tienen la capacidad técnica y de gestión para construir la infraestructura y proveer los servicios del proyecto","Existe un número muy elevado de empresas a nivel nacional y/o internacional que tienen la capacidad técnica y de gestión para construir la infraestructura y proveer los servicios del proyecto"]
[]
[null,null,"CATEGORIA 5",null,null,null,null,"Entorno del proyecto favorable a la modalidad APP"]
[null,"P31","Riesgo político",null,null,null,null,"El sector privado enfrenta un riesgo muy alto de que la construcción se paralice o de expropiación al momento del cambio de gobierno","El sector privado enfrenta un riesgo alto de que la construcción se paralice o de expropiación al momento del cambio de gobierno","El sector privado enfrenta un riesgo mediano de que la construcción se paralice o de expropiación al momento del cambio de gobierno","El sector privado enfrenta un riesgo bajo de que la construcción se paralice o de expropiación al momento del cambio de gobierno","El sector privado enfrenta un riesgo muy bajo de que la construcción se paralice o de expropiación al momento del cambio de gobierno"]
[]
[null,"P32","Experiencia y capacidad del sector público",null,null,null,null,"El sector público tiene niveles de experiencia y capacidad muy bajos para llevar a cabo el proyecto y asegurar su monitoreo y supervisión ","El sector público tiene niveles de experiencia y capacidad bajos para llevar a cabo el proyecto y asegurar su monitoreo y supervisión","El sector público tiene niveles de experiencia y capacidad medianos para llevar a cabo el proyecto y asegurar su monitoreo y supervisión","El sector público tiene niveles de experiencia y capacidad altos para llevar a cabo el proyecto y asegurar su monitoreo y supervisión","El sector público tiene niveles de experiencia y capacidad muy altos para llevar a cabo el proyecto y asegurar su monitoreo y supervisión"]
[]
[null,"P33","Cohesión institucional",null,null,null,null,"Existe un nivel muy bajo de cohesión institucional entre las diversas partes del sector público que participan al desarrollo del proyecto en sus distintas etapas","Existe un nivel bajo de cohesión institucional entre las diversas partes del sector público que participan al desarrollo del proyecto en sus distintas etapas","Existe un nivel mediano de cohesión institucional entre las diversas partes del sector público que participan al desarrollo del proyecto en sus distintas etapas","Existe un nivel alto de cohesión institucional entre las diversas partes del sector público que participan al desarrollo del proyecto en sus distintas etapas","Existe un nivel muy alto de cohesión institucional entre las diversas partes del sector público que participan al desarrollo del proyecto en sus distintas etapas"]
[]
[null,"P34","Flexibilidad en el contrato",null,null,null,null,"Es muy difícil estructurar el contrato (el modelo de negocio) de manera suficientemente flexible para poder ajustarse a imprevistos, contingencias y adaptarse en el tiempo a la complejidad del proyecto","Es difícil estructurar el contrato (el modelo de negocio) de manera suficientemente flexible para poder ajustarse a imprevistos, contingencias y adaptarse en el tiempo a la complejidad del proyecto","Es medianamente difícil estructurar el contrato (el modelo de negocio) de manera suficientemente flexible para poder ajustarse a imprevistos, contingencias y adaptarse en el tiempo a la complejidad del proyecto","Es fácil estructurar el contrato (el modelo de negocio) de manera suficientemente flexible para poder ajustarse a imprevistos, contingencias y adaptarse en el tiempo a la complejidad del proyecto","Es muy fácil estructurar el contrato (el modelo de negocio) de manera suficientemente flexible para poder ajustarse a imprevistos, contingencias y adaptarse en el tiempo a la complejidad del proyecto"]
[]
[null,"P35","Competencia al momento de la licitación",null,null,null,null,"El proyecto tiene un potencial muy bajo de generar competencia al momento del proceso de licitación","El proyecto tiene un potencial bajo de generar competencia al momento del proceso de licitación","El proyecto tiene un potencial mediano de generar competencia al momento del proceso de licitación","El proyecto tiene un potencial alto de generar competencia al momento del proceso de licitación","El proyecto tiene un potencial muy alto de generar competencia al momento del proceso de licitación"]
[]
[null,"P36","Configuración monopolística",null,null,null,null,"El usuario no tiene alternativas (sustitutos) al proyecto una vez en operación","El usuario tiene una alternativa (sustituto) al proyecto una vez en operación, pero de menor calidad","El usuario tiene pocas alternativas (sustitutos) al proyecto una vez en operación","El usuario tiene varias alternativas (sustitutos) al proyecto una vez en operación","El usuario tiene muchas alternativas (sustitutos) al proyecto una vez en operación de calidad por lo menos similar"]
[]
[null,"P43","CATEGORIA 6",null,null,null,null,"Generación de Valor por Dinero bajo la modalidad APP"]
[null,"P37","Innovaciones",null,null,null,null,"Es muy difícil para el sector privado implementar una serie de innovaciones técnicas y/u operativas para ese proyecto ","Es difícil para el sector privado implementar una serie de innovaciones técnicas y/u operativas para ese proyecto","Es medianamente difícil para el sector privado implementar una serie de innovaciones técnicas y/u operativas para ese proyecto","Es fácil para el sector privado implementar una serie de innovaciones técnicas y/u operativas para ese proyecto","Es muy fácil para el sector privado implementar una serie de innovaciones técnicas y/u operativas para ese proyecto"]
[]
[null,"P38","Transferencia y gestión de riesgos",null,null,null,null,"Es muy difícil transferir al sector privado una cantidad sustancial de riesgos donde el sector privado sabrá gestionar de manera más eficiente que lo haría el sector público","Es muy difícil transferir al sector privado una cantidad sustancial de riesgos donde el sector privado sabrá gestionar de manera más eficiente que lo haría el sector público","Es muy medianamente difícil transferir al sector privado una cantidad sustancial de riesgos donde el sector privado sabrá gestionar de manera más eficiente que lo haría el sector público","Es fácil transferir al sector privado una cantidad sustancial de riesgos donde el sector privado sabrá gestionar de manera más eficiente que lo haría el sector público","Es muy fácil transferir al sector privado una cantidad sustancial de riesgos donde el sector privado sabrá gestionar de manera más eficiente que lo haría el sector público"]
[]
[null,"P39","Transferencia de tecnologías",null,null,null,null,"Es muy difícil que con la materialización del proyecto se transfieren al país o al sector tecnologías usadas en otros países o sectores ","Es difícil que con la materialización del proyecto se transfieren al país o sector tecnologías usadas en otros países o sectores","Es medianamente difícil que con la materialización del proyecto se transfieren al país o sector tecnologías usadas en otros países o sectores","Es fácil que con la materialización del proyecto se transfieren al país o sector tecnologías usadas en otros países o sectores","Es muy fácil que con la materialización del proyecto se transfieren al país o sector tecnologías usadas en otros países o sectores"]
[]
[null,"P40","Sobrecostos y sobreplazos",null,null,null,null,"Proyectos similares, desarrollados bajo la modalidad de contratación tradicional de obra pública, presentan niveles de sobrecostos y sobreplazos muy bajos","Proyectos similares, desarrollados bajo la modalidad de contratación tradicional de obra pública, presentan niveles de sobrecostos y sobreplazos bajos","Proyectos similares, desarrollados bajo la modalidad de contratación tradicional de obra pública, presentan niveles de sobrecostos y sobreplazos medianos","Proyectos similares, desarrollados bajo la modalidad de contratación tradicional de obra pública, presentan niveles de sobrecostos y sobreplazos altos","Proyectos similares, desarrollados bajo la modalidad de contratación tradicional de obra pública, presentan niveles de sobrecostos y sobreplazos muy altos"]
[]
[null,"P41","Integración de funciones (bundling)",null,null,null,null,"Existen beneficios muy bajos, principalmente en términos de reducción de costos, en integrar en un mismo contrato las diversas fases de desarrollo de un proyecto","Existen beneficios bajos, principalmente en términos de reducción de costos, en integrar en un mismo contrato las diversas fases de desarrollo de un proyecto","Existen beneficios medianos, principalmente en términos de reducción de costos, en integrar en un mismo contrato las diversas fases de desarrollo de un proyecto","Existen beneficios altos, principalmente en términos de reducción de costos, en integrar en un mismo contrato las diversas fases de desarrollo de un proyecto","Existen beneficios muy altos, principalmente en términos de reducción de costos, en integrar en un mismo contrato las diversas fases de desarrollo de un proyecto"]
[]
[null,"P42","Calidad del servicio",null,null,null,null,"El hecho de desarrollar el proyecto por APP versus Obra Pública Tradicional permite un incremento muy bajo de calidad en el servicio","El hecho de desarrollar el proyecto por APP versus Obra Pública Tradicional permite un incremento bajo de calidad en el servicio","El hecho de desarrollar el proyecto por APP versus Obra Pública Tradicional permite un incremento mediano de calidad en el servicio","El hecho de desarrollar el proyecto por APP versus Obra Pública Tradicional permite un incremento alto de calidad en el servicio","El hecho de desarrollar el proyecto por APP versus Obra Pública Tradicional permite un incremento muy alto de calidad en el servicio"]
[]
[null,"P43","Operación y mantenimiento garantizados",null,null,null,null,"Proyectos similares, desarrollados bajo la modalidad de obra pública tradicional, logran siempre asegurar niveles adecuados de operación y mantenimiento de los activos públicos","Proyectos similares, desarrollados bajo la modalidad de obra pública tradicional, logran asegurar niveles adecuados de operación y mantenimiento de los activos públicos","Proyectos similares, desarrollados bajo la modalidad de obra pública tradicional, logran en general asegurar niveles adecuados de operación y mantenimiento de los activos públicos","Proyectos similares, desarrollados bajo la modalidad de obra pública tradicional, no logran asegurar niveles adecuados de operación y mantenimiento de los activos públicos","Proyectos similares, desarrollados bajo la modalidad de obra pública tradicional, no logran nunca asegurar niveles adecuados de operación y mantenimiento de los activos públicos"]
[]
[null,"P44","Optimización de los ingresos comerciales\n",null,null,null,null,"La provisión privada no permite generar ingresos comerciales más elevados en comparación al caso de la modalidad tradicional de gestión de la obra pública","La provisión privada permite generar ingresos comerciales un poco más elevados en comparación al caso de la modalidad tradicional de gestión de la obra pública","La provisión privada permite generar ingresos comerciales medianamente más elevados en comparación al caso de la modalidad tradicional de gestión de la obra pública","La provisión privada permite generar ingresos comerciales elevados en comparación al caso de la modalidad tradicional de gestión de la obra pública","La provisión privada permite generar ingresos comerciales muy elevados en comparación al caso de la modalidad tradicional de gestión de la obra pública"]
[]
[null,"P45","Reducción de la espera pública\n",null,null,null,null,"No existe postergación de la inversión para ese tipo de proyecto por falta de recursos públicos","Existe un grado bajo de postergación de la inversión para ese tipo de proyecto por falta de recursos públicos","Existe un grado mediano de postergación de la inversión para ese tipo de proyecto por falta de recursos públicos","Existe un grado elevado de postergación de la inversión para ese tipo de proyecto por falta de recursos públicos","Existe un grado muy elevado de postergación de la inversión para ese tipo de proyecto por falta de recursos públicos"]

{"sheet":"Indice","index":2,"n_rows":8,"n_cols":9,"rows_kept":8,"cut":false,"hidden":false,"merged":[]}
[]
[null,null,null,null,null,"Índice PPP",{"$error":"#REF!"},null,"Medio"]
[null,null,null,null,null,"Prioridad del proyecto APP",null,null,"Alto"]
[null,null,null,null,null,"Viabilidad del proyecto APP",null,null,"Medio"]
[null,null,null,null,null,"Características del proyecto APP",null,null,"Medio"]
[null,null,null,null,null,"Bancabilidad del proyecto APP",null,null,"Medio"]
[null,null,null,null,null,"Entorno de proyecto APP",null,null,"Bajo"]
[null,null,null,null,null,"Generación de valor por la APP",null,null,"Alto"]

{"sheet":"Tabulación","index":3,"n_rows":59,"n_cols":92,"rows_kept":59,"cut":false,"hidden":true,"merged":[[1,84,1,86],[1,87,1,89],[1,91,1,92],[2,91,2,92],[1,7,1,10],[1,13,1,63],[1,64,1,69],[1,70,1,77],[1,78,1,80],[1,81,1,83]]}
[]
[null,null,null,null,null,null,"Pregunta 1","Pregunta 2",null,null,null,"Pregunta 3","Pregunta 4","Pregunta 5",null,null,null,null,null,null,null,null,null,null,null,null,null,null,null,null,null,null,null,null,null,null,null,null,null,null,null,null,null,null,null,null,null,null,null,null,null,null,null,null,null,null,null,null,null,null,null,null,null,null,"Pregunta 6",null,null,null,null,null,"Pregunta8",null,null,null,null,null,null,null,"Pregunta 9",null,null,"Pregunta 10",null,null,"Pregunta 11",null,null,"Pregunta 12",null,null,"Pregunta 7","Pregunta 9 (otros)"]
[null,"Individuo","Correo","Institución","Sector","Cuestionario","P01.0","P02.1","P02.2","P02.3","P02.4","P03.0","P04.0","P05.1.1","P05.1.2","P05.1.3","P05.1.4","P05.1.5","P05.2.1","P05.2.2","P05.2.3","P05.2.4","P05.2.5","P05.2.6","P05.2.7","P05.2.8","P05.2.9","P05.3.1","P05.3.2","P05.3.3","P05.3.4","P05.3.5","P05.3.6","P05.3.7","P05.3.8","P05.4.1","P05.4.2","P05.4.3","P05.4.4","P05.4.5","P05.4.6","P05.4.7","P05.4.8","P05.4.9","P05.4.10","P05.4.11","P05.4.12","P05.5.1","P05.5.2","P05.5.3","P05.5.4","P05.5.5","P05.5.6","P05.5.7","P05.5.8","P05.6.1","P05.6.2","P05.6.3","P05.6.4","P05.6.5","P05.6.6","P05.6.7","P05.6.8","P05.6.9","P06.1","P06.2","P06.3","P06.4","P06.5","P06.6","P08.1","P08.2","P08.3","P08.4","P08.5","P08.6","P08.7","P08.8","P09.1","P09.2","P09.3","P10.1","P10.2","P10.3","P11.1","P11.2","P11.3","P12.1","P12.2","P12.3","P07","P09.3.Otros"]
[null,"Sarah Feliz","sfeliz@economia.gob","MEPyD","Público",1,2,2,3,3,2,2,4,5,5,5,3,3,1,1,1,1,3,1,3,3,3,3,1,1,1,3,4,3,3,3,3,5,2,1,4,3,4,2,3,2,3,3,3,5,5,5,5,5,4,3,5,3,1,5,5,3,3,5,5,4,3,5,3,5,3,2,4,4,4,3,3,3,3,9,2,1,10,12,10,0,0,0,0,0,0]
[null,"Yanna Dishmey","ydishmey@economia.gob.do","MEPyD","Público",0]
[null,"Martin Francos","mfrancos@economia.gob.do","MEPyD","Público",1,2,1,3,3,2,2,3,3,3,5,3,3,5,3,1,4,5,5,5,5,5,5,1,1,1,5,5,5,3,5,4,5,2,1,4,4,1,3,5,3,5,3,4,3,5,4,4,4,4,4,5,4,4,4,5,5,5,4,1,5,3,4,3,4,5,1,5,4,3,2,1,4,2,8,11,4,5,10,0,0,0,3,1,5,0]
[null,"Juan Carlos Lopez","jclopez@economia.gob.do","MEPyD","Público",1,1,2,1,3,2,3,3,3,4,5,4,3,2,5,4,3,4,1,4,2,3,2,3,4,3,5,4,3,3,4,3,4,3,2,3,4,5,4,3,1,3,2,4,3,4,5,4,3,2,3,5,3,4,4,5,5,2,4,5,3,4,3,4,5,2,2,3,4,3,3,2,3,3,2,8,12,7,4,7,8,10,4,5,3,0]
[null,"Diego Armando Silfa Alvarez","dsilfa@economia.gob.do","MEPyD","Público",1,1,2,1,1,2,5,3,4,5,5,4,4,2,3,2,5,5,3,3,1,2,4,2,3,2,4,5,4,4,5,4,5,4,4,2,5,4,3,3,3,5,4,3,1,5,5,5,5,5,5,5,5,5,5,5,5,4,5,3,5,5,4,4,5,2,2,4,4,4,5,3,4,4,5,8,3,5,1,7,1,4,2,3,4,0]
[null,"Jaime Ariel Pérez","japerez@economia.gob.do","MEPyD","Público",1,1,2,1,1,2,3,4,4,5,4,3,2,4,2,2,2,3,3,2,4,2,4,3,3,3,4,5,2,4,4,4,4,2,2,4,3,4,2,4,2,4,4,3,2,3,2,3,3,3,5,5,4,5,5,5,5,2,4,3,3,5,5,3,5,3,2,5,5,4,4,3,3,9,3,10,2,12,1,1,9,12,4,5,3,0]
[null,"José Antonio Bencosme","jabencosme@economia.gob.do","MEPyD","Público",0]
[null,"Ana Francisca Mejia Dicent","amejia@economia.gob.do","MEPyD","Público",0]
[null,"Amin Santana Cruz","aesantana@economia.gob.do","MEPyD","Público",0]
[null,"Osmar Beltré","obeltre@economia.gob.do","MEPyD","Público",1,1,3,1,1,2,5,4,5,5,4,3,5,2,4,4,3,2,2,3,2,3,3,4,4,4,2,3,2,4,2,3,5,3,4,4,2,4,4,3,3,5,4,4,3,5,2,2,3,1,4,4,4,3,3,2,2,3,2,5,3,3,4,3,2,3,2,2,4,4,3,4,1,11,8,2,9,2,1,1,4,12,1,2,3,0]
[null,"Pamela Sanchez","pschezg@gmail.com","MINPRE","Público",1,1,1,1,3,2,2,3,5,5,4,3,4,5,4,5,5,5,4,4,5,4,4,5,3,4,5,4,4,4,4,5,5,4,4,4,4,5,5,5,4,5,5,4,4,5,5,0,4,3,3,4,3,5,5,5,5,5,5,4,5,4,5,5,5,3,3,3,3,3,2,2,4,8,1,2,3,1,4,10,4,5,4,5,3,0]
[null,"Joel de Dios Ramírez","joeldedios@gmail.com","MINPRE","Público",1,1,2,1,1,2,3,3,2,2,5,3,3,3,4,5,3,4,3,3,4,2,4,3,5,4,4,5,4,3,3,4,5,2,2,4,2,4,2,4,1,4,4,3,4,3,4,4,3,3,3,4,2,2,4,3,3,3,3,2,4,4,3,4,3,3,2,2,4,3,3,2,3,2,12,1,9,7,3,1,8,9,4,5,3,0]
[null,"Emilio Hungría","ejhungria@gmail.com","MAP","Público",0]
[null,"Wilson Martinez",null,"CJPE","Público",0]
[null,"Teresalina Paez Martínez","tpaez@economia.gob.do","MEPYD","Público",0]
[null,"Elka Scheker","escheker@gmail.com","Asesora","Público",1,2,2,1,3,2,5,3,3,4,5,3,4,4,3,3,4,5,5,5,5,5,5,4,5,4,4,4,2,4,4,4,4,4,3,4,4,5,3,3,3,5,5,3,4,4,4,4,5,4,4,4,4,3,4,4,5,3,4,5,4,5,5,4,4,4,1,4,4,2,2,2,4,8,1,5,10,12,6,1,2,9,3,4,2,0]
[null,null,"adelarosa@dgcp.gob.do","Dirección General de Contrataciones Públicas","Público",0]
[null,null,"yceron@dgcp.gob.do","Dirección General de Contrataciones Públicas","Público",1,2,1,1,1,2,2,3,4,4,5,3,3,1,5,5,4,4,2,2,3,5,4,2,5,5,5,4,5,3,5,3,5,5,3,4,2,5,4,4,2,4,5,4,3,5,5,5,3,5,2,4,3,2,4,4,3,2,3,4,4,4,4,4,4,2,1,1,4,2,3,1,3,1,8,12,4,7,5,9,11,12,4,3,2,0]
[null,"Oficina de abogados Melo Guerrero",null,"Oficina de abogados Melo Guerrero","Privado",1,1,2,1,1,3,5,3,4,4,4,3,5,2,2,2,3,2,2,3,2,1,4,3,4,2,4,3,3,3,4,3,4,4,4,4,3,2,2,3,3,4,4,1,3,4,4,5,5,4,4,4,4,3,4,3,4,4,4,3,5,4,4,3,5,2,2,3,3,2,2,2,4,1,3,5,3,12,1,12,5,8,3,4,5,0]
[null,"Jiménez,Cruz, Peña",null,"Jiménez,Cruz, Peña","Privado",1,1,2,1,1,2,2,4,4,5,4,3,3,1,2,4,4,4,1,2,2,3,4,2,2,1,3,4,2,5,3,3,4,4,3,3,2,3,2,2,2,4,3,3,4,5,4,5,4,1,3,4,3,4,4,5,5,5,5,4,5,3,4,4,5,2,1,1,3,2,3,2,4,4,1,8,1,10,9,1,8,9,4,5,3,0]
[null,"DMK Abogados",null,"DMK Abogados","Privado",1,1,1,1,1,1,3,3,5,5,5,4,4,5,5,4,5,4,4,5,0,4,5,4,4,5,5,4,4,4,4,4,4,5,5,5,5,5,5,5,5,5,4,5,5,5,4,4,5,4,5,5,5,5,5,5,5,4,5,5,5,5,4,4,4,4,2,1,4,3,3,2,3,8,5,4,12,10,2,12,10,1,5,4,3,0]
[null,"Seibel Dargam Henríquez & Herrera",null,"Seibel Dargam Henríquez & Herrera","Privado",1,1,2,1,1,3,6,4,5,5,5,4,4,2,2,2,4,5,3,4,5,5,4,2,4,4,5,5,4,5,3,3,5,2,2,4,3,5,2,3,2,5,5,5,5,5,2,5,3,2,3,5,4,5,5,5,5,4,4,4,5,5,5,4,4,1,2,1,2,3,3,3,4,11,1,4,1,10,12,12,0,0,5,1,3,0]
[null,"Encuesta 1",null,"Ministerio de Hacienda","Público",1,1,1,1,3,1,3,4,4,4,5,3,3,2,3,3,2,3,2,5,4,4,4,3,2,2,3,4,4,4,4,3,3,2,3,3,3,5,4,3,2,4,4,4,3,4,4,4,5,4,3,5,4,4,4,5,4,3,4,4,5,4,5,4,5,4,3,4,4,4,3,4,5,1,9,5,5,10,12,5,1,12,2,3,4,0]
[null,"Encuesta 2",null,"Ministerio de Hacienda","Público",1,1,1,3,1,2,6,3,5,5,5,5,5,4,5,5,4,5,4,5,3,3,4,4,4,4,5,5,4,4,5,4,5,4,3,5,4,5,4,4,4,5,5,5,4,5,4,5,4,4,3,4,4,3,4,5,5,4,4,5,5,4,5,4,4,3,1,2,3,2,4,1,3,0,0,0,0,0,0,0,0,0,0,0,0,"1. Regulación y 2. Supervisión\nCon esto se refiere a un Marco Legal definido y por parte del Estado un mecanismo de control de eficiencia, transparencia y efectividad de la APP.\nNivel de Importancia 5 en ambas"]
[null,"Encuesta 3",null,"Ministerio de Hacienda","Público",1,1,1,1,3,1,0,3,5,4,5,5,4,0,5,4,4,3,4,5,5,3,2,4,2,3,4,5,4,5,4,4,5,3,0,5,0,5,3,3,3,4,2,5,4,5,5,5,3,0,3,4,3,5,5,4,4,5,5,5,3,0,4,5,5,4,1,4,3,2,2,3,0,8,1,13,4,10,12,1,9,11,1,2,3,0,"Ordenamiento Territorial"]
[]
[null,null,null,null,null,null,null,null,null,null,null,null,null,{"$f":"AVERAGE(N4:N28)","v":4.117647058823529},{"$f":"AVERAGE(O4:O28)","v":4.3529411764705879},4.7058823529411766,3.4705882352941178,3.6470588235294117,2.6470588235294117,3.4117647058823528,3.2941176470588234,3.5294117647058822,3.8823529411764706,2.8823529411764706,3.7058823529411766,3.2352941176470589,3.3529411764705883,3.8235294117647061,2.9411764705882355,3.2941176470588234,3.0588235294117645,4.117647058823529,4.2941176470588234,3.4705882352941178,3.8235294117647061,3.8823529411764706,3.5882352941176472,4.5294117647058822,3.2352941176470589,2.7058823529411766,3.8823529411764706,3.1176470588235294,4.1764705882352944,3.1764705882352939,3.5294117647058822,2.6470588235294117,4.3529411764705879,3.8823529411764706,3.7058823529411766,3.5294117647058822,4.5294117647058822,4,4.0588235294117645,3.9411764705882355,3.1176470588235294,3.5294117647058822,4.4705882352941178,3.6470588235294117,3.7058823529411766,4.3529411764705879,4.4117647058823533,4.2941176470588234,3.5882352941176472,4.117647058823529,{"$f":"AVERAGE(BM4:BM28)","v":3.9411764705882355},4.2941176470588234,3.8235294117647061,4.2941176470588234,3.8235294117647061,4.3529411764705879]
[]
[]
[]
[]
[]
[null,null,null,null,null,null,{"$f":"4/17","v":0.23529411764705882},7,14,10,3,0,null,null,null,null,null,null,null,null,null,null,null,null,null,null,null,null,null,null,null,null,null,null,null,null,null,null,null,null,null,null,null,null,null,null,null,null,null,null,null,null,null,null,null,null,null,null,null,null,null,null,null,null,{"$f":"BM30/$BM$37","v":0.16067146282973624},{"$f":"BN30/$BM$37","v":0.1750599520383693},0.15587529976019188,0.1750599520383693,0.15587529976019188,0.17745803357314149]
[null,null,null,null,null,null,{"$f":"13/17","v":0.76470588235294112},9,0,0,12,5,null,null,null,null,null,null,null,null,null,null,null,null,null,null,null,null,null,null,null,null,null,null,null,null,null,null,null,null,null,null,null,null,null,null,null,null,null,null,null,null,null,null,null,null,null,null,null,null,null,null,null,null,{"$f":"SUM(BM30:BR30)","v":24.52941176470588}]
[null,null,null,null,null,null,null,1,3,7,2,5]
[null,null,null,null,null,null,null,{"$f":"H36/17","v":0.41176470588235292},{"$f":"I36/17","v":0.82352941176470584},0.58823529411764708,0.17647058823529413,0]
[null,null,null,null,null,null,null,{"$f":"H37/17","v":0.52941176470588236},0,0,0.70588235294117652,4]
[null,null,null,null,null,null,null,5.8823529411764705E-2,0.17647058823529413,0.41176470588235292,0.11764705882352941,2]
[]
[]
[]
[null,null,null,null,null,null,null,null,null,null,null,null,null,null,null,null,null,null,null,null,null,null,null,null,null,null,null,null,null,null,null,null,null,null,null,null,null,null,null,null,null,null,null,null,null,null,null,null,null,null,null,null,null,null,null,null,null,null,null,null,null,null,null,null,null,null,null,null,null,null,{"$f":"COUNTIF(BS4:BS28,1)","v":1},6,4,0,0,0,3,1,3,5,1,3,1,4,{"$f":"COUNTIF(CG4:CI28,1)","v":9},{"$f":"CG45/41","v":0.21951219512195122},null,{"$f":"COUNTIF(CJ4:CL28,1)","v":4},{"$f":"CJ45/45","v":8.8888888888888892E-2}]
[null,null,null,null,null,null,null,null,null,null,null,null,null,null,null,null,null,null,null,null,null,null,null,null,null,null,null,null,null,null,null,null,null,null,null,null,null,null,null,null,null,null,null,null,null,null,null,null,null,null,null,null,null,null,null,null,null,null,null,null,null,null,null,null,null,null,null,null,null,null,{"$f":"COUNTIF(BS4:BS28,2)","v":5},9,3,1,6,5,7,0,2,1,3,1,1,1,{"$f":"COUNTIF(CG4:CI28,2)","v":1},{"$f":"CG46/41","v":2.4390243902439025E-2},null,{"$f":"COUNTIF(CJ4:CL28,2)","v":6},{"$f":"CJ46/45","v":0.13333333333333333}]
[null,null,null,null,null,null,null,null,null,null,null,null,null,null,null,null,null,null,null,null,null,null,null,null,null,null,null,null,null,null,null,null,null,null,null,null,null,null,null,null,null,null,null,null,null,null,null,null,null,null,null,null,null,null,null,null,null,null,null,null,null,null,null,null,null,null,null,null,null,null,{"$f":"COUNTIF(BS4:BS28,3)","v":6},2,3,5,6,9,5,7,2,2,0,3,0,1,{"$f":"COUNTIF(CG4:CI28,3)","v":0},0,null,{"$f":"COUNTIF(CJ4:CL28,3)","v":15},0.33333333333333331]
[null,null,null,null,null,null,null,null,null,null,null,null,null,null,null,null,null,null,null,null,null,null,null,null,null,null,null,null,null,null,null,null,null,null,null,null,null,null,null,null,null,null,null,null,null,null,null,null,null,null,null,null,null,null,null,null,null,null,null,null,null,null,null,null,null,null,null,null,null,null,{"$f":"COUNTIF(BS4:BS28,4)","v":4},0,5,10,5,2,2,7,2,0,2,3,0,2,{"$f":"COUNTIF(CG4:CI28,4)","v":3},7.3170731707317069E-2,null,{"$f":"COUNTIF(CJ4:CL28,4)","v":11},0.24444444444444444]
[null,null,null,null,null,null,null,null,null,null,null,null,null,null,null,null,null,null,null,null,null,null,null,null,null,null,null,null,null,null,null,null,null,null,null,null,null,null,null,null,null,null,null,null,null,null,null,null,null,null,null,null,null,null,null,null,null,null,null,null,null,null,null,null,null,null,null,null,null,null,{"$f":"COUNTIF(BS4:BS28,5)","v":1},0,2,1,0,1,0,1,0,2,3,1,2,1,{"$f":"COUNTIF(CG4:CI28,5)","v":3},7.3170731707317069E-2,null,{"$f":"COUNTIF(CJ4:CL28,5)","v":9},0.2]
[null,null,null,null,null,null,null,null,null,null,null,null,null,null,null,null,null,null,null,null,null,null,null,null,null,null,null,null,null,null,null,null,null,null,null,null,null,null,null,null,null,null,null,null,null,null,null,null,null,null,null,null,null,null,null,null,null,null,null,null,null,null,null,null,null,null,null,null,null,null,null,null,null,null,null,null,null,null,{"$f":"COUNTIF(CA4:CA28,6)","v":0},0,0,0,0,1,{"$f":"COUNTIF(CG4:CI28,6)","v":0},0]
[null,null,null,null,null,null,null,null,null,null,null,null,null,null,null,null,null,null,null,null,null,null,null,null,null,null,null,null,null,null,null,null,null,null,null,null,null,null,null,null,null,null,null,null,null,null,null,null,null,null,null,null,null,null,null,null,null,null,null,null,null,null,null,null,null,null,null,null,null,null,{"$f":"SUM(BS45:BS46)/17","v":0.35294117647058826},{"$f":"SUM(BT45:BT46)/17","v":0.88235294117647056},{"$f":"SUM(BU45:BU46)/17","v":0.41176470588235292},5.8823529411764705E-2,0.35294117647058826,0.29411764705882354,0.58823529411764708,{"$f":"SUM(BZ45:BZ46)/16","v":6.25E-2},{"$f":"COUNTIF(CA4:CA28,7)","v":0},0,0,0,3,0,{"$f":"COUNTIF(CG4:CI28,7)","v":2},4.878048780487805E-2]
[null,null,null,null,null,null,null,null,null,null,null,null,null,null,null,null,null,null,null,null,null,null,null,null,null,null,null,null,null,null,null,null,null,null,null,null,null,null,null,null,null,null,null,null,null,null,null,null,null,null,null,null,null,null,null,null,null,null,null,null,null,null,null,null,null,null,null,null,null,null,{"$f":"BS47/17","v":0.35294117647058826},{"$f":"BT47/17","v":0.11764705882352941},0.17647058823529413,0.29411764705882354,0.35294117647058826,0.52941176470588236,0.29411764705882354,{"$f":"BZ47/16","v":0.4375},{"$f":"COUNTIF(CA4:CA28,8)","v":4},3,3,0,0,0,{"$f":"COUNTIF(CG4:CI28,8)","v":4},9.7560975609756101E-2]
[null,null,null,null,null,null,null,null,null,null,null,null,null,null,null,null,null,null,null,null,null,null,null,null,null,null,null,null,null,null,null,null,null,null,null,null,null,null,null,null,null,null,null,null,null,null,null,null,null,null,null,null,null,null,null,null,null,null,null,null,null,null,null,null,null,null,null,null,null,null,{"$f":"SUM(BS48:BS49)/17","v":0.29411764705882354},{"$f":"SUM(BT48:BT49)/17","v":0},0.41176470588235292,0.6470588235294118,0.29411764705882354,0.17647058823529413,0.11764705882352941,{"$f":"SUM(BZ48:BZ49)/16","v":0.5},{"$f":"COUNTIF(CA4:CA28,9)","v":1},2,0,2,0,1,{"$f":"COUNTIF(CG4:CI28,9)","v":6},0.14634146341463414]
[null,null,null,null,null,null,null,null,null,null,null,null,null,null,null,null,null,null,null,null,null,null,null,null,null,null,null,null,null,null,null,null,null,null,null,null,null,null,null,null,null,null,null,null,null,null,null,null,null,null,null,null,null,null,null,null,null,null,null,null,null,null,null,null,null,null,null,null,null,null,null,null,null,null,null,null,null,null,{"$f":"COUNTIF(CA4:CA28,10)","v":0},0,1,1,6,1,{"$f":"COUNTIF(CG4:CI28,10)","v":4},9.7560975609756101E-2]
[null,null,null,null,null,null,null,null,null,null,null,null,null,null,null,null,null,null,null,null,null,null,null,null,null,null,null,null,null,null,null,null,null,null,null,null,null,null,null,null,null,null,null,null,null,null,null,null,null,null,null,null,null,null,null,null,null,null,null,null,null,null,null,null,null,null,null,null,null,null,null,null,null,null,null,null,null,null,{"$f":"COUNTIF(CA4:CA28,11)","v":2},0,1,0,0,0,{"$f":"COUNTIF(CG4:CI28,11)","v":2},4.878048780487805E-2]
[null,null,null,null,null,null,null,null,null,null,null,null,null,null,null,null,null,null,null,null,null,null,null,null,null,null,null,null,null,null,null,null,null,null,null,null,null,null,null,null,null,null,null,null,null,null,null,null,null,null,null,null,null,null,null,null,null,null,null,null,null,null,null,null,null,null,null,null,null,null,null,null,null,null,null,null,null,null,{"$f":"COUNTIF(CA4:CA28,12)","v":0},1,1,2,3,4,{"$f":"COUNTIF(CG4:CI28,12)","v":7},0.17073170731707318]
[null,null,null,null,null,null,null,null,null,null,null,null,null,null,null,null,null,null,null,null,null,null,null,null,null,null,null,null,null,null,null,null,null,null,null,null,null,null,null,null,null,null,null,null,null,null,null,null,null,null,null,null,null,null,null,null,null,null,null,null,null,null,null,null,null,null,null,null,null,null,null,null,null,null,null,null,null,null,{"$f":"COUNTIF(CA4:CA28,13)","v":0},0,1,0,0,0,{"$f":"COUNTIF(CG4:CI28,13)","v":0},0]
[null,null,null,null,null,null,null,null,null,null,null,null,null,null,null,null,null,null,null,null,null,null,null,null,null,null,null,null,null,null,null,null,null,null,null,null,null,null,null,null,null,null,null,null,null,null,null,null,null,null,null,null,null,null,null,null,null,null,null,null,null,null,null,null,null,null,null,null,null,null,null,null,null,null,null,null,null,null,{"$f":"COUNTIF(CA4:CA28,14)","v":0},0,0,0,0,0]
[null,null,null,null,null,null,null,null,null,null,null,null,null,null,null,null,null,null,null,null,null,null,null,null,null,null,null,null,null,null,null,null,null,null,null,null,null,null,null,null,null,null,null,null,null,null,null,null,null,null,null,null,null,null,null,null,null,null,null,null,null,null,null,null,null,null,null,null,null,null,null,null,null,null,null,null,null,null,{"$f":"COUNTIF(CA4:CA28,15)","v":0},0,0,0,0,0]

{"sheet":"Ponderadores","index":4,"n_rows":213,"n_cols":27,"rows_kept":213,"cut":false,"hidden":true,"merged":[]}
[]
[]
[null,"Criterio","Descripción del criterio","Promedio Criterios","Ponderación Intracategoría (%)","Promedio Categorías","Ponderación Categorías \n(%)","Ponderación Criterios \n(%)",null,"Indice",{"$f":"K4+K10+K20+K28+K41+K50","v":{"$error":"#REF!"}}]
[null,"Categoría 1",{"$f":"Cuestionario!H6","v":"Nivel de prioridad del Proyecto APP para la Sociedad y el Gobierno"},{"$f":"SUM(D5:D9)","v":20.294117647058826},{"$f":"SUM(E5:E9)","v":1},{"$f":"Y186","v":3.9411764705882355},{"$f":"AA186","v":0.16067146282973624},{"$f":"SUM(H5:H9)","v":0.16067146282973621},null,{"$f":"SUMPRODUCT(E5:E9,J5:J9)","v":{"$error":"#REF!"}},{"$f":"J4*G4","v":{"$error":"#REF!"}}]
["P1",{"$f":"Cuestionario!C7","v":"Alineación con la planeación estratégica nacional"},"La modalidad APP se adecúa más a los proyectos reconocidos como prioritarios por la entidad pública y debidamente alineados con la planeación estratégica a nivel nacional.",{"$f":"Y135","v":4.117647058823529},{"$f":"D5/$D$4","v":0.20289855072463764},null,null,{"$f":"$G$4*E5","v":3.2600006950960971E-2},null,{"$f":"Cuestionario!J8","v":0}]
["P2",{"$f":"Cuestionario!C9","v":"Alineación con la planeación estratégica sectorial"},"La modalidad APP se adecúa más a los proyectos reconocidos como prioritarios por la entidad pública y debidamente alineados con la planeación estratégica a nivel sectorial.",{"$f":"Y136","v":4.3529411764705879},{"$f":"D6/$D$4","v":0.21449275362318837},null,null,{"$f":"$G$4*E6","v":3.4462864491015884E-2},null,{"$f":"Cuestionario!J10","v":0},null,null,null,null,null,2]
["P3",{"$f":"Cuestionario!#REF!","v":{"$error":"#REF!"}},"La modalidad APP se adecúa más a los proyectos que generan un impacto socioeconómico positivo sobre la población y que cubren sus necesidades o solucionan un problema público.",4.7058823529411766,0.23188405797101447,null,null,3.7257150801098253E-2,null,{"$f":"Cuestionario!#REF!","v":{"$error":"#REF!"}},null,null,null,null,null,"Viabilidad del proyecto como una APP por categorías"]
["P4",{"$f":"Cuestionario!C11","v":"Generación de riqueza compartida y/o reducción de desigualdad"},"La modalidad APP se adecúa más a los proyectos importantes para la sociedad y el gobierno, en el sentido que apoyen a reducir la pobreza y la desigualdad social en el país.",3.4705882352941178,0.17101449275362318,null,null,2.7477148715809963E-2,null,{"$f":"Cuestionario!J12","v":0},null,null,null,null,null,"Nivel de importancia de los criterios de elegibilidad"]
["P5",{"$f":"Cuestionario!C13","v":"Reducción de la desigualdad territorial"},"La modalidad APP se adecúa más a los proyectos importantes para la sociedad y el gobierno, en el sentido colaboren en reducir las desigualdades entre territorios en el país.",3.6470588235294117,0.1797101449275362,null,null,2.8874291870851145E-2,null,{"$f":"Cuestionario!J14","v":0},null,null,null,null,null,"Nivel de importancia de las categorías de elegibilidad"]
[null,"Categoría 2",{"$f":"Cuestionario!H15","v":"Viabilidad del Proyecto APP"},{"$f":"SUM(D11:D19)","v":29.941176470588232},{"$f":"SUM(E11:E19)","v":1.0000000000000002},{"$f":"Y187","v":4.2941176470588234},{"$f":"AA187","v":0.1750599520383693},{"$f":"SUM(H11:H19)","v":0.17505995203836933},null,{"$f":"SUMPRODUCT(E11:E19,J11:J19)","v":0},{"$f":"J10*G10","v":0}]
["P6",{"$f":"Cuestionario!C16","v":"Complejidad del proyecto"},"La modalidad APP se adecúa más a los proyectos que no presentan niveles altos de complejidad en sus especificaciones técnicas, de ingeniería /arquitectura, ambientales y de desempeño de la calidad del servicio.",{"$f":"Y140","v":2.6470588235294117},{"$f":"D11/$D$10","v":8.8408644400785857E-2},null,null,{"$f":"$G$10*E11","v":1.5476813048578819E-2},null,{"$f":"Cuestionario!J17","v":0}]
["P7",{"$f":"Cuestionario!C18","v":"Disponibilidad de recursos para financiar estudios"},"La modalidad APP se adecúa más a los proyectos por los cuales la entidad pública dispone de recursos monetarios para financiar los procesos de preparación, estructuración y licitación.",{"$f":"Y141","v":3.4117647058823528},{"$f":"D12/$D$10","v":0.11394891944990178},null,null,{"$f":"$G$10*E12","v":1.9947892373723811E-2},null,{"$f":"Cuestionario!J19","v":0}]
["P8",{"$f":"Cuestionario!C22","v":"Compromiso político con el proyecto"},"La modalidad APP se adecúa más a los proyectos por los cuales el tomador de decisión político está comprometido con el proyecto y puede lograr firmar el contrato antes del fin de su mandato.",3.2941176470588234,{"$f":"D13/$D$10","v":0.1100196463654224},null,null,1.9260034016009196E-2,null,{"$f":"Cuestionario!J23","v":0}]
["P9",{"$f":"Cuestionario!C24","v":"Grado de avances en los estudios"},"La modalidad APP se adecúa más a los proyectos que tienen un mayor grado de avance en sus estudios de factibilidad.",3.5294117647058822,0.11787819253438114,null,null,2.0635750731438425E-2,null,{"$f":"Cuestionario!J25","v":0}]
["P10",{"$f":"Cuestionario!C26","v":"Rechazo del proyecto por parte de los involucrados"},"La modalidad APP se adecúa más a los proyectos que no son objeto de rechazo por parte de los involucrados del proyecto en particular los usuarios directos, pero también la sociedad civil y las comunidades afectadas. ",3.8823529411764706,0.12966601178781928,null,null,2.2699325804582272E-2,null,{"$f":"Cuestionario!J27","v":0}]
["P11",{"$f":"Cuestionario!C28","v":"Número de involucrados"},"La modalidad APP se adecúa más a los proyectos que tienen un número bajo de involucrados lo que facilita la conciliación de acuerdos para su desarrollo.",2.8823529411764706,9.6267190569744601E-2,null,null,1.6852529764008046E-2,null,{"$f":"Cuestionario!J29","v":0}]
["P12",{"$f":"Cuestionario!C30","v":"Impacto ambiental"},"La modalidad APP se adecúa más a los proyectos que presentan riesgos ambientales acotados y/o participan a disminuir los impactos ambientales.",3.7058823529411766,0.12377210216110021,null,null,2.1667538268010347E-2,null,{"$f":"Cuestionario!J31","v":0}]
["P13",{"$f":"Cuestionario!C32","v":"Cambio de ley y/o adquisición de terrenos"},"La modalidad APP se adecúa más a los proyectos por los cuales no se tiene que modificar una ley y/o adquirir terrenos (o derechos de paso). ",3.2352941176470589,0.10805500982318272,null,null,1.8916104837151893E-2,null,{"$f":"Cuestionario!J33","v":0}]
["P14",{"$f":"Cuestionario!C20","v":"Líder del proyecto"},"La modalidad APP se adecúa más a los proyectos por los cuales es posible identificar claramente un líder (persona o institución) encargado de la gestión del proyecto desde su preparación.",3.3529411764705883,0.1119842829076621,null,null,1.9603963194866507E-2,null,{"$f":"Cuestionario!J21","v":0}]
[null,"Categoría 3",{"$f":"Cuestionario!H34","v":"Características del proyecto adaptadas a la modalidad APP"},{"$f":"SUM(D21:D27)","v":25},{"$f":"SUM(E21:E27)","v":0.99999999999999989},{"$f":"Y188","v":3.8235294117647061},{"$f":"AA188","v":0.15587529976019188},{"$f":"SUM(H21:H27)","v":0.15587529976019185},null,{"$f":"SUMPRODUCT(E21:E27,J21:J27)","v":0},{"$f":"J20*G20","v":0}]
["P15",{"$f":"Cuestionario!C35","v":"Tamaño del proyecto o grupos de proyectos"},"La modalidad APP se adecúa más a los proyectos (o grupos de proyectos) cuyo tamaño es suficiente para aprovechar potenciales economías de escala y cubrir los costos de transacción más elevados en el caso de APP que en la modalidad de contratación tradicional de la obra pública.",{"$f":"Y149","v":3.8235294117647061},{"$f":"D21/$D$20","v":0.15294117647058825},null,null,{"$f":"$G$20*E21","v":2.3839751728029348E-2},null,{"$f":"Cuestionario!J36","v":0}]
["P16",{"$f":"Cuestionario!C37","v":"Tiempo de construcción del proyecto"},"La modalidad APP se adecúa más a los proyectos cuya duración de la etapa de construcción no es tan larga, considerando que generalmente los pagos al inversionista privado solo ocurren una vez el proyecto entra en operación.",2.9411764705882355,{"$f":"D22/$D$20","v":0.11764705882352942},null,null,{"$f":"$G$20*E22","v":1.8338270560022577E-2},null,{"$f":"Cuestionario!J38","v":0}]
["P17",{"$f":"Cuestionario!C39","v":"Urgencia del proyecto"},"La modalidad APP se adecúa más a los proyectos que no son tan urgentes de implementar (por respuesta a desastres naturales o presiones políticas o de la población), del hecho que el proceso de preparación y licitación suele ser más largo en el caso de APP que en el de la obra pública tradicional.",3.2941176470588234,0.13176470588235292,null,null,2.0538863027225279E-2,null,{"$f":"Cuestionario!J40","v":0}]
["P18",{"$f":"Cuestionario!C41","v":"Estabilidad de la tecnología del proyecto"},"La modalidad APP se adecúa más a los proyectos poco intensivos en tecnologías que impliquen cambios acelerados y sufran de obsolescencia rápidamente.",3.0588235294117645,0.12235294117647058,null,null,1.9071801382423474E-2,null,{"$f":"Cuestionario!J42","v":0}]
["P19",{"$f":"Cuestionario!C43","v":"Demanda de largo plazo del proyecto"},"La modalidad APP se adecúa más a los proyectos que tienen una demanda estable, de largo plazo y sin mayor dificultad de estimar a partir de estudios de demanda.",4.117647058823529,0.16470588235294115,null,null,2.5673578784031599E-2,null,{"$f":"Cuestionario!J44","v":0}]
["P20",{"$f":"Cuestionario!C45","v":"Definición de los servicios e indicadores de desempeño (KPI)"},"La modalidad APP se adecúa más a los proyectos por los cuales es fácil definir en el contrato los servicios a proveer y formular indicadores de desempeño para controlar su calidad.",4.2941176470588234,0.17176470588235293,null,null,2.6773875017632957E-2,null,{"$f":"Cuestionario!J46","v":0}]
["P21",{"$f":"Cuestionario!C47","v":"Independencia (interfaz) con otros proyectos"},"La modalidad APP se adecúa más a los proyectos cuyas ejecución y operación no dependen tanto de la ejecución y/u operación de otros proyectos en desarrollo o infraestructura existente por los riesgos adicionales que esto representa para el proyecto.",3.4705882352941178,0.13882352941176471,null,null,2.1639159260826636E-2,null,{"$f":"Cuestionario!J48","v":0}]
[null,"Categoría 4",{"$f":"Cuestionario!H49","v":"Bancabilidad del proyecto APP"},{"$f":"SUM(D29:D40)","v":42.82352941176471},{"$f":"SUM(E29:E40)","v":0.99999999999999989},{"$f":"Y189","v":4.2941176470588234},{"$f":"AA189","v":0.1750599520383693},{"$f":"SUM(H29:H40)","v":0.17505995203836927},null,{"$f":"SUMPRODUCT(E29:E40,J29:J40)","v":{"$error":"#REF!"}},{"$f":"J28*G28","v":{"$error":"#REF!"}}]
["P22",{"$f":"Cuestionario!C50","v":"Proyecto autofinanciable"},"La modalidad APP se adecúa tanto a los proyectos que generan ingresos como aquellos que se complementan con pagos del gobierno suficientes para cubrir los costos de la APP.",{"$f":"Y157","v":3.8823529411764706},{"$f":"D29/$D$28","v":9.0659340659340656E-2},null,null,{"$f":"$G$28*E29","v":1.587081982765436E-2},null,{"$f":"Cuestionario!J51","v":0}]
["P23",{"$f":"Cuestionario!C52","v":"Clima de inversión y condiciones macroeconómicas"},"La modalidad APP se adecúa más a los proyectos que se desarrollan en un entorno económico favorable y condiciones macroeconómicas estables.",{"$f":"Y158","v":3.5882352941176472},{"$f":"D30/$D$28","v":8.3791208791208785E-2},null,null,{"$f":"$G$28*E30","v":1.4668484992225998E-2},null,{"$f":"Cuestionario!J53","v":0}]
["P24",{"$f":"Cuestionario!C54","v":"Atractividad del proyecto para los sectores privado y financiero"},"La modalidad APP se adecúa más a los proyectos que se perciben como razonables desde el punto de vista económico, financieramente rentables y que sea capaces de atraer inversionistas privados e instituciones financieras.",4.5294117647058822,0.10576923076923075,null,null,1.8515956465596749E-2,null,{"$f":"Cuestionario!J55","v":0}]
["P25",{"$f":"Cuestionario!C56","v":"Atractividad del proyecto para los organismos internacionales"},"La modalidad APP se adecúa más a los proyectos atractivos para los organismos internacionales (alineados con sus objetivos estratégicos y la estrategia país).  ",3.2352941176470589,7.5549450549450545E-2,null,null,1.3225683189711965E-2,null,{"$f":"Cuestionario!J57","v":0}]
["P26",{"$f":"Cuestionario!#REF!","v":{"$error":"#REF!"}},"La modalidad de APP es más adecuada en proyectos que son atractivos para la diáspora del país o región del proyecto, ya que representa una fuente potencial de ingresos para el proyecto.",2.7058823529411766,6.3186813186813184E-2,null,null,1.1061480485940916E-2,null,{"$f":"Cuestionario!#REF!","v":{"$error":"#REF!"}}]
["P27",{"$f":"Cuestionario!C58","v":"Costo de financiamiento"},"La modalidad APP se adecúa más a los proyectos que pueden conseguir una calificación crediticia favorable y cuyo costo de financiamiento no se anticipa ser alto.",3.8823529411764706,9.0659340659340656E-2,null,null,1.587081982765436E-2,null,{"$f":"Cuestionario!J59","v":0}]
["P28",{"$f":"Cuestionario!C60","v":"Capacidad de los mercados locales de capital"},"La modalidad APP se adecúa más a los proyectos que se llevan a cabo en un entorno con mercados locales de capitales con cierto nivel de desarrollo y disposición de financiar proyecto a plazos mayores que los bancos.",3.1176470588235294,7.2802197802197793E-2,null,null,1.2744749255540621E-2,null,{"$f":"Cuestionario!J61","v":0}]
["P29",{"$f":"Cuestionario!C62","v":"Impacto sobre las finanzas públicas"},"La modalidad APP se adecúa más a los proyectos que tienen un impacto moderado sobre el presupuesto y el endeudamiento de la entidad pública, considerando el costo presupuestario directo del proyecto, pero también de los pasivos contingentes generados por proyecto.",4.1764705882352944,9.7527472527472528E-2,null,null,1.7073154663082721E-2,null,{"$f":"Cuestionario!J63","v":0}]
["P30",{"$f":"Cuestionario!C64","v":"Experiencia del sector privado en el país"},"La modalidad APP se adecúa más a los proyectos por los cuales existe en el país un nivel alto de experiencia en cuanto al desarrollo de proyectos similares por APP.",3.1764705882352939,7.4175824175824162E-2,null,null,1.2985216222626291E-2,null,{"$f":"Cuestionario!J65","v":0}]
["P31",{"$f":"Cuestionario!#REF!","v":{"$error":"#REF!"}},"La modalidad APP se adecúa más a los proyectos por los cuales existe en países semejantes un nivel alto de experiencia en cuanto al desarrollo de proyectos similares por APP.",3.5294117647058822,8.2417582417582402E-2,null,null,1.4428018025140325E-2,null,{"$f":"Cuestionario!J67","v":0}]
["P32",{"$f":"Cuestionario!#REF!","v":{"$error":"#REF!"}},"La modalidad APP se adecúa más a los proyectos por los cuales existe en países desarrollados un nivel alto de experiencia en cuanto al desarrollo de proyectos similares por APP.",2.6470588235294117,6.1813186813186809E-2,null,null,1.0821013518855244E-2,null,{"$f":"Cuestionario!#REF!","v":{"$error":"#REF!"}}]
["P33",{"$f":"Cuestionario!C68","v":"Capacidad del sector privado"},"La modalidad APP se adecúa más a los proyectos por los cuales existen varias empresas a nivel nacional y/o internacional que tienen la capacidad técnica y de gestión para construir la infraestructura y proveer los servicios del proyecto.",4.3529411764705879,0.10164835164835163,null,null,1.7794555564339735E-2,null,{"$f":"Cuestionario!J69","v":0}]
[null,"Categoría 5",{"$f":"Cuestionario!H70","v":"Entorno del proyecto favorable a la modalidad APP"},{"$f":"SUM(D42:D49)","v":30.764705882352942},{"$f":"SUM(E42:E49)","v":0.99999999999999978},{"$f":"Y190","v":3.8235294117647061},{"$f":"AA190","v":0.15587529976019188},{"$f":"SUM(H42:H49)","v":0.15587529976019185},null,{"$f":"SUMPRODUCT(E42:E49,J42:J49)","v":{"$error":"#REF!"}},{"$f":"J41*G41","v":{"$error":"#REF!"}}]
["P34",{"$f":"Cuestionario!C71","v":"Riesgo político"},"La modalidad APP se adecúa más a los proyectos por los cuales el sector privado no arriesga una expropiación derivados de cambios de gobierno o situaciones de orden interno. ",{"$f":"Y169","v":3.8823529411764706},{"$f":"D42/$D$41","v":0.12619502868068833},null,null,{"$f":"$G$41*E42","v":1.9670687923848303E-2},null,{"$f":"Cuestionario!J72","v":0}]
["P35",{"$f":"Cuestionario!C73","v":"Experiencia y capacidad del sector público"},"La modalidad APP se adecúa más a los proyectos por los cuales el sector público tiene la experiencia y capacidad necesaria para llevar a cabo el proyecto y asegurar su monitoreo y supervisión.",{"$f":"Y170","v":3.7058823529411766},{"$f":"D43/$D$41","v":0.12045889101338432},null,null,{"$f":"$G$41*E43","v":1.8776565745491563E-2},null,{"$f":"Cuestionario!J74","v":0}]
["P36",{"$f":"Cuestionario!C75","v":"Cohesión institucional"},"La modalidad APP se adecúa más a los proyectos por los cuales existe una alta cohesión institucional entre las diversas partes del sector público que participan al desarrollo del proyecto en sus distintas etapas.",3.5294117647058822,0.1147227533460803,null,null,1.7882443567134823E-2,null,{"$f":"Cuestionario!J76","v":0}]
["P37",{"$f":"Cuestionario!#REF!","v":{"$error":"#REF!"}},"La modalidad APP se adecúa más a los proyectos por los cuales existe un marco legal sólido para el desarrollo de APP.",4.5294117647058822,0.14722753346080306,null,null,2.2949135911156358E-2,null,{"$f":"Cuestionario!#REF!","v":{"$error":"#REF!"}}]
["P38",{"$f":"Cuestionario!#REF!","v":{"$error":"#REF!"}},"La modalidad APP se adecúa más a los proyectos que son capaces de generar competencia al momento del proceso de licitación de manera de obtener las mejores condiciones para el sector público.",4,0.130019120458891,null,null,2.0266769376086131E-2,null,{"$f":"Cuestionario!#REF!","v":{"$error":"#REF!"}}]
["P39",{"$f":"Cuestionario!C77","v":"Flexibilidad en el contrato"},"La modalidad APP se adecúa más a los proyectos que se llevan a cabo en un entorno que garantiza niveles altos de transparencia al momento del proceso de licitación.",4.0588235294117645,0.13193116634799235,null,null,2.0564810102205046E-2,null,{"$f":"Cuestionario!J78","v":0}]
["P40",{"$f":"Cuestionario!C79","v":"Competencia al momento de la licitación"},"La modalidad APP se adecúa más a los proyectos por los cuales el contrato (el modelo de negocio) se puede estructurar de manera suficientemente flexible para poder ajustarse a imprevistos, contingencias y adaptarse en el tiempo a la complejidad del proyecto, lo que limita los riesgos de renegociaciones futuras del contrato.",3.9411764705882355,0.12810707456978968,null,null,1.996872864996722E-2,null,{"$f":"Cuestionario!J80","v":0}]
["P41",{"$f":"Cuestionario!C81","v":"Configuración monopolística"},"La modalidad APP se adecúa más a los proyectos por los cuales existe al menos una alternativa (un sustituto), lo que le da menos poder de negociación al sector privado una vez firmado el contrato.",3.1176470588235294,0.10133843212237094,null,null,1.5796158484302429E-2,null,{"$f":"Cuestionario!J82","v":0}]
[null,"Categoría 6",{"$f":"Cuestionario!H83","v":"Generación de Valor por Dinero bajo la modalidad APP"},{"$f":"SUM(D51:D59)","v":36.117647058823529},{"$f":"SUM(E51:E59)","v":1.0000000000000002},{"$f":"Y191","v":4.3529411764705879},{"$f":"AA191","v":0.17745803357314149},{"$f":"SUM(H51:H59)","v":0.17745803357314152},null,{"$f":"SUMPRODUCT(E51:E59,J51:J59)","v":0},{"$f":"J50*G50","v":0}]
["P42",{"$f":"Cuestionario!C84","v":"Innovaciones"},"La modalidad APP se adecúa más a los proyectos por los cuales el sector privado puede implementar una serie de innovaciones técnicas y/u operativas.",{"$f":"Y177","v":3.5294117647058822},{"$f":"D51/$D$50","v":9.7719869706840393E-2},null,null,{"$f":"$G$50*E51","v":1.7341175919199495E-2},null,{"$f":"Cuestionario!J85","v":0}]
["P43",{"$f":"Cuestionario!C86","v":"Transferencia y gestión de riesgos"},"La modalidad APP se adecúa más a los proyectos por los cuales es posible transferir al sector privado una cantidad sustancial de riesgos que el sector privado sabrá gestionar de manera más eficiente que lo haría el sector público.",{"$f":"Y178","v":4.4705882352941178},{"$f":"D52/$D$50","v":0.12377850162866449},null,null,{"$f":"$G$50*E52","v":2.1965489497652695E-2},null,{"$f":"Cuestionario!J87","v":0}]
["P44",{"$f":"Cuestionario!C88","v":"Transferencia de tecnologías"},"La modalidad APP se adecúa más a los proyectos por los cuales el sector privado puede transferir tecnologías usadas en otros países o sectores, al país o sector en el cual se implementa el proyecto APP.",3.6470588235294117,0.10097719869706841,null,null,1.7919215116506144E-2,null,{"$f":"Cuestionario!J89","v":0}]
["P45",{"$f":"Cuestionario!C90","v":"Sobrecostos y sobreplazos"},"La modalidad APP se adecúa más a los proyectos por los cuales proyectos similares, desarrollados bajo la modalidad de contratación tradicional de obra pública, presentan altos sobrecostos y sobreplazos.",3.7058823529411766,0.10260586319218241,null,null,1.820823471515947E-2,null,{"$f":"Cuestionario!J91","v":0}]
["P46",{"$f":"Cuestionario!C92","v":"Integración de funciones (bundling)"},"La modalidad APP se adecúa más a los proyectos por los cuales existen beneficios potenciales, principalmente en términos de reducción de costos, a integrar en un mismo contrato las diversas fases de desarrollo de un proyecto, en particular el diseño, la construcción, la operación y el mantenimiento.",4.3529411764705879,0.12052117263843648,null,null,2.1387450300346042E-2,null,{"$f":"Cuestionario!J93","v":0}]
["P47",{"$f":"Cuestionario!C94","v":"Calidad del servicio"},"La modalidad APP se adecúa más a los proyectos por los cuales la provisión privada permite mejorar sensiblemente la calidad del servicio en comparación a la modalidad tradicional de gestión de la obra pública.",4.4117647058823533,0.1221498371335505,null,null,2.1676469898999372E-2,null,{"$f":"Cuestionario!J95","v":0}]
["P48",{"$f":"Cuestionario!C96","v":"Operación y mantenimiento garantizados"},"La modalidad APP se adecúa más a los proyectos por los cuales proyectos similares, desarrollados bajo la modalidad de contratación tradicional de obra pública, presentan problemas (por ejemplo, en cuanto a la disponibilidad de recursos) para asegurar niveles adecuados de operación y mantenimiento de los activos públicos.",4.2941176470588234,0.11889250814332247,null,null,2.1098430701692719E-2,null,{"$f":"Cuestionario!J97","v":0}]
["P49",{"$f":"Cuestionario!C98","v":"Optimización de los ingresos comerciales\n"},"La modalidad APP se adecúa más a los proyectos por los cuales la provisión privada puede permitir generar ingresos comerciales más altos que en el caso de la modalidad tradicional de gestión de la obra pública.",3.5882352941176472,9.93485342019544E-2,null,null,1.7630195517852821E-2,null,{"$f":"Cuestionario!J99","v":0}]
["P50",{"$f":"Cuestionario!C100","v":"Reducción de la espera pública\n"},"La modalidad APP se adecúa más a los proyectos por los cuales existen beneficios potenciales importantes en acelerar el ritmo de la inversión pública y que se lleven a cabo más temprano que por la modalidad de contratación tradicional de la obra pública.",4.117647058823529,0.11400651465798045,null,null,2.0231371905732744E-2,null,{"$f":"Cuestionario!J101","v":0}]
[null,null,"Suma Promedio de las Categorías",{"$f":"SUM(D4,D10,D20,D28,D41,D50)","v":184.94117647058823},null,null,null,null,null,{"$f":"COUNTIF(J5:J9,\"0\")+COUNTIF(J11:J19,\"0\")+COUNTIF(J21:J27,\"0\")+COUNTIF(J29:J40,\"0\")+COUNTIF(J42:J49,\"0\")+COUNTIF(J51:J59,\"0\")","v":45}]
[null,null,"Suma Promedio de los Criterios",{"$f":"SUM(D5:D9,D11:D19,D21:D27,D29:D40,D42:D49,D51:D59)","v":184.94117647058823}]
[]
[]
[]
[]
[]
[]
[null,null,"Criterios","Criterios promedio",null,null,"Categoría","Categoría media"]
[null,null,{"$f":"B5","v":"Alineación con la planeación estratégica nacional"},{"$f":"D5","v":4.117647058823529},null,null,{"$f":"C4","v":"Nivel de prioridad del Proyecto APP para la Sociedad y el Gobierno"},{"$f":"F4","v":3.9411764705882355}]
[null,null,{"$f":"B6","v":"Alineación con la planeación estratégica sectorial"},{"$f":"D6","v":4.3529411764705879},null,null,{"$f":"C10","v":"Viabilidad del Proyecto APP"},{"$f":"F10","v":4.2941176470588234}]
[null,null,{"$f":"B7","v":{"$error":"#REF!"}},{"$f":"D7","v":4.7058823529411766},null,null,{"$f":"C20","v":"Características del proyecto adaptadas a la modalidad APP"},{"$f":"F20","v":3.8235294117647061}]
[null,null,{"$f":"B8","v":"Generación de riqueza compartida y/o reducción de desigualdad"},{"$f":"D8","v":3.4705882352941178},null,null,{"$f":"C28","v":"Bancabilidad del proyecto APP"},{"$f":"F28","v":4.2941176470588234}]
[null,null,{"$f":"B9","v":"Reducción de la desigualdad territorial"},{"$f":"D9","v":3.6470588235294117},null,null,{"$f":"C41","v":"Entorno del proyecto favorable a la modalidad APP"},{"$f":"F41","v":3.8235294117647061}]
[null,null,{"$f":"B11","v":"Complejidad del proyecto"},{"$f":"D11","v":2.6470588235294117},null,null,{"$f":"C50","v":"Generación de Valor por Dinero bajo la modalidad APP"},{"$f":"F50","v":4.3529411764705879}]
[null,null,"Disponibilidad de recursos para financiar estudios",3.4117647058823528]
[null,null,"Compromiso político con el proyecto",3.2941176470588234]
[null,null,"Grado de avances en los estudios",3.5294117647058822]
[null,null,"Rechazo del proyecto por parte de los involucrados",3.8823529411764706]
[null,null,"Número de involucrados",2.8823529411764706]
[null,null,"Impacto ambiental",3.7058823529411766]
[null,null,"Cambio de ley y/o adquisición de terrenos",3.2352941176470589]
[null,null,"Líder del proyecto",3.3529411764705883]
[null,null,{"$f":"B21","v":"Tamaño del proyecto o grupos de proyectos"},{"$f":"D21","v":3.8235294117647061}]
[null,null,"Tiempo de construcción del proyecto",2.9411764705882355]
[null,null,"Urgencia del proyecto",3.2941176470588234]
[null,null,"Estabilidad de la tecnología del proyecto",3.0588235294117645]
[null,null,"Demanda de largo plazo del proyecto",4.117647058823529]
[null,null,"Definición de los servicios e indicadores de desempeño (KPI)",4.2941176470588234]
[null,null,"Independencia (interfaz) con otros proyectos",3.4705882352941178]
[null,null,{"$f":"B29","v":"Proyecto autofinanciable"},{"$f":"D29","v":3.8823529411764706}]
[null,null,"Clima de inversión y condiciones macroeconómicas",3.5882352941176472]
[null,null,"Atractividad del proyecto para los sectores privado y financiero",4.5294117647058822]
[null,null,"Atractividad del proyecto para los organismos internacionales",3.2352941176470589]
[null,null,{"$error":"#REF!"},2.7058823529411766]
[null,null,"Costo de financiamiento",3.8823529411764706]
[null,null,"Capacidad de los mercados locales de capital",3.1176470588235294]
[null,null,"Impacto sobre las finanzas públicas",4.1764705882352944]
[null,null,"Experiencia del sector privado en el país",3.1764705882352939]
[null,null,{"$error":"#REF!"},3.5294117647058822]
[null,null,{"$error":"#REF!"},2.6470588235294117]
[null,null,"Capacidad del sector privado",4.3529411764705879]
[null,null,{"$f":"B42","v":"Riesgo político"},{"$f":"D42","v":3.8823529411764706}]
[null,null,"Experiencia y capacidad del sector público",3.7058823529411766]
[null,null,"Cohesión institucional",3.5294117647058822]
[null,null,{"$error":"#REF!"},4.5294117647058822]
[null,null,{"$error":"#REF!"},4]
[null,null,"Flexibilidad en el contrato",4.0588235294117645]
[null,null,"Competencia al momento de la licitación",3.9411764705882355]
[null,null,"Configuración monopolística",3.1176470588235294]
[null,null,{"$f":"B51","v":"Innovaciones"},{"$f":"D51","v":3.5294117647058822}]
[null,null,"Transferencia y gestión de riesgos",4.4705882352941178]
[null,null,"Transferencia de tecnologías",3.6470588235294117]
[null,null,"Sobrecostos y sobreplazos",3.7058823529411766]
[null,null,"Integración de funciones (bundling)",4.3529411764705879]
[null,null,"Calidad del servicio",4.4117647058823533]
[null,null,"Operación y mantenimiento garantizados",4.2941176470588234]
[null,null,"Optimización de los ingresos comerciales\n",3.5882352941176472]
[null,null,"Reducción de la espera pública\n",4.117647058823529]
[]
[]
[]
[]
[]
[]
[]
[]
[]
[null,null,null,null,null,"Pregunta 1","P01.0",2,2,1,1,1,1,1,1,2,2,1,1,1,1,1,1,1]
[null,null,null,null,null,"Pregunta 2","P02.1",2,1,2,2,2,3,1,2,2,1,2,2,1,2,1,1,1]
[null,null,null,null,null,null,"P02.2",3,3,1,1,1,1,1,1,1,1,1,1,1,1,1,3,1]
[null,null,null,null,null,null,"P02.3",3,3,3,1,1,1,3,1,3,1,1,1,1,1,3,1,3]
[null,null,null,null,null,null,"P02.4",2,2,2,2,2,2,2,2,2,2,3,2,1,3,1,2,1]
[null,null,null,null,null,"Pregunta 3","P03.0",2,2,3,5,3,5,2,3,5,2,5,2,3,6,3,6,0]
[null,null,null,null,null,"Pregunta 4","P04.0",4,3,3,3,4,4,3,3,3,3,3,4,3,4,4,3,3]
[null,null,null,null,null,"Pregunta 5","P05.1.1",5,3,3,4,4,5,5,2,3,4,4,4,5,5,4,5,5,{"$f":"AVERAGE(H135:X135)","v":4.117647058823529}]
[null,null,null,null,null,null,"P05.1.2",5,3,4,5,5,5,5,2,4,4,4,5,5,5,4,5,4,{"$f":"AVERAGE(H136:X136)","v":4.3529411764705879}]
[null,null,null,null,null,null,"P05.1.3",5,5,5,5,4,4,4,5,5,5,4,4,5,5,5,5,5,4.7058823529411766]
[null,null,null,null,null,null,"P05.1.4",3,3,4,4,3,3,3,3,3,3,3,3,4,4,3,5,5,3.4705882352941178]
[null,null,null,null,null,null,"P05.1.5",3,3,3,4,2,5,4,3,4,3,5,3,4,4,3,5,4,3.6470588235294117]
[null,null,null,null,null,null,"P05.2.1",1,5,2,2,4,2,5,3,4,1,2,1,5,2,2,4,0,2.6470588235294117]
[null,null,null,null,null,null,"P05.2.2",1,3,5,3,2,4,4,4,3,5,2,2,5,2,3,5,5,3.4117647058823528]
[null,null,null,null,null,null,"P05.2.3",1,1,4,2,2,4,5,5,3,5,2,4,4,2,3,5,4,3.2941176470588234]
[null,null,null,null,null,null,"P05.2.4",1,4,3,5,2,3,5,3,4,4,3,4,5,4,2,4,4,3.5294117647058822]
[null,null,null,null,null,null,"P05.2.5",3,5,4,5,3,2,5,4,5,4,2,4,4,5,3,5,3,3.8823529411764706]
[null,null,null,null,null,null,"P05.2.6",1,5,1,3,3,2,4,3,5,2,2,1,4,3,2,4,4,2.8823529411764706]
[null,null,null,null,null,null,"P05.2.7",3,5,4,3,2,3,4,3,5,2,3,2,5,4,5,5,5,3.7058823529411766]
[null,null,null,null,null,null,"P05.2.8",3,5,2,1,4,2,5,4,5,3,2,2,0,5,4,3,5,3.2352941176470589]
[null,null,null,null,null,null,"P05.2.9",3,5,3,2,2,3,4,2,5,5,1,3,4,5,4,3,3,3.3529411764705883]
[null,null,null,null,null,null,"P05.3.1",3,5,2,4,4,3,4,4,5,4,4,4,5,4,4,4,2,3.8235294117647061]
[null,null,null,null,null,null,"P05.3.2",1,1,3,2,3,4,5,3,4,2,3,2,4,2,3,4,4,2.9411764705882355]
[null,null,null,null,null,null,"P05.3.3",1,1,4,3,3,4,3,5,5,5,4,2,4,4,2,4,2,3.2941176470588234]
[null,null,null,null,null,null,"P05.3.4",1,1,3,2,3,4,4,4,4,5,2,1,5,4,2,4,3,3.0588235294117645]
[null,null,null,null,null,null,"P05.3.5",3,5,5,4,4,2,5,4,4,5,4,3,5,5,3,5,4,4.117647058823529]
[null,null,null,null,null,null,"P05.3.6",4,5,4,5,5,3,4,5,4,4,3,4,4,5,4,5,5,4.2941176470588234]
[null,null,null,null,null,null,"P05.3.7",3,5,3,4,2,2,4,4,2,5,3,2,4,4,4,4,4,3.4705882352941178]
[null,null,null,null,null,null,"P05.3.8",3,3,3,4,4,4,4,3,4,3,3,5,4,5,4,4,5,{"$f":"AVERAGE(H156:X156)","v":3.8235294117647061}]
[null,null,null,null,null,null,"P05.4.1",3,5,4,5,4,2,4,3,4,5,4,3,4,3,4,5,4,3.8823529411764706]
[null,null,null,null,null,null,"P05.4.2",3,4,3,4,4,3,5,4,4,3,3,3,4,3,3,4,4,3.5882352941176472]
[null,null,null,null,null,null,"P05.4.3",5,5,4,5,4,5,5,5,4,5,4,4,4,5,3,5,5,4.5294117647058822]
[null,null,null,null,null,null,"P05.4.4",2,2,3,4,2,3,4,2,4,5,4,4,5,2,2,4,3,3.2352941176470589]
[null,null,null,null,null,null,"P05.4.5",1,1,2,4,2,4,4,2,3,3,4,3,5,2,3,3,0,2.7058823529411766]
[null,null,null,null,null,null,"P05.4.6",4,4,3,2,4,4,4,4,4,4,4,3,5,4,3,5,5,3.8823529411764706]
[null,null,null,null,null,null,"P05.4.7",3,4,4,5,3,2,4,2,4,2,3,2,5,3,3,4,0,3.1176470588235294]
[null,null,null,null,null,null,"P05.4.8",4,1,5,4,4,4,5,4,5,5,2,3,5,5,5,5,5,4.1764705882352944]
[null,null,null,null,null,null,"P05.4.9",2,3,4,3,2,4,5,2,3,4,2,2,5,2,4,4,3,3.1764705882352939]
[null,null,null,null,null,null,"P05.4.10",3,5,3,3,4,3,5,4,3,4,3,2,5,3,3,4,3,3.5294117647058822]
[null,null,null,null,null,null,"P05.4.11",2,3,1,3,2,3,4,1,3,2,3,2,5,2,2,4,3,2.6470588235294117]
[null,null,null,null,null,null,"P05.4.12",3,5,3,5,4,5,5,4,5,4,4,4,5,5,4,5,4,4.3529411764705879]
[null,null,null,null,null,null,"P05.5.1",3,3,2,4,4,4,5,4,5,5,4,3,4,5,4,5,2,3.8823529411764706]
[null,null,null,null,null,null,"P05.5.2",3,4,4,3,3,4,4,3,3,4,1,3,5,5,4,5,5,3.7058823529411766]
[null,null,null,null,null,null,"P05.5.3",5,3,3,1,2,3,4,4,4,3,3,4,5,5,3,4,4,3.5294117647058822]
[null,null,null,null,null,null,"P05.5.4",5,5,4,5,3,5,5,3,4,5,4,5,5,5,4,5,5,4.5294117647058822]
[null,null,null,null,null,null,"P05.5.5",5,4,5,5,2,2,5,4,4,5,4,4,4,2,4,4,5,4]
[null,null,null,null,null,null,"P05.5.6",5,4,4,5,3,2,0,4,4,5,5,5,4,5,4,5,5,4.0588235294117645]
[null,null,null,null,null,null,"P05.5.7",5,4,3,5,3,3,4,3,5,3,5,4,5,3,5,4,3,3.9411764705882355]
[null,null,null,null,null,null,"P05.5.8",4,4,2,5,3,1,3,3,4,5,4,1,4,2,4,4,0,3.1176470588235294]
[null,null,null,null,null,null,"P05.6.1",3,4,3,5,5,4,3,3,4,2,4,3,5,3,3,3,3,3.5294117647058822]
[null,null,null,null,null,null,"P05.6.2",5,5,5,5,5,4,4,4,4,4,4,4,5,5,5,4,4,4.4705882352941178]
[null,null,null,null,null,null,"P05.6.3",3,4,3,5,4,4,3,2,4,3,4,3,5,4,4,4,3,3.6470588235294117]
[null,null,null,null,null,null,"P05.6.4",1,4,4,5,5,3,5,2,3,2,3,4,5,5,4,3,5,3.7058823529411766]
[null,null,null,null,null,null,"P05.6.5",5,4,4,5,5,3,5,4,4,4,4,4,5,5,4,4,5,4.3529411764705879]
[null,null,null,null,null,null,"P05.6.6",5,5,5,5,5,2,5,3,4,4,3,5,5,5,5,5,4,4.4117647058823533]
[null,null,null,null,null,null,"P05.6.7",3,5,5,5,5,2,5,3,5,3,4,5,5,5,4,5,4,4.2941176470588234]
[null,null,null,null,null,null,"P05.6.8",3,5,2,4,2,3,5,3,3,2,4,5,4,4,3,4,5,3.5882352941176472]
[null,null,null,null,null,null,"P05.6.9",5,4,4,5,4,2,5,3,4,3,4,5,5,4,4,4,5,4.117647058823529]
[null,null,null,null,null,"Pregunta 6","P06.1",5,1,5,3,3,5,4,2,5,4,3,4,5,4,4,5,5,3.9411764705882355,{"$f":"SUM(Y186:Y191)","v":24.52941176470588},{"$f":"Y186/$Z$186","v":0.16067146282973624}]
[null,null,null,null,null,null,"P06.2",4,5,3,5,3,3,5,4,4,4,5,5,5,5,5,5,3,4.2941176470588234,null,{"$f":"Y187/$Z$186","v":0.1750599520383693}]
[null,null,null,null,null,null,"P06.3",3,3,4,5,5,3,4,4,5,4,4,3,5,5,4,4,0,3.8235294117647061,null,0.15587529976019188]
[null,null,null,null,null,null,"P06.4",5,4,3,4,5,4,5,3,5,4,4,4,4,5,5,5,4,4.2941176470588234,null,0.1750599520383693]
[null,null,null,null,null,null,"P06.5",3,3,4,4,3,3,5,4,4,4,3,4,4,4,4,4,5,3.8235294117647061,null,0.15587529976019188]
[null,null,null,null,null,null,"P06.6",5,4,5,5,5,2,5,3,4,4,5,5,4,4,5,4,5,4.3529411764705879,null,0.17745803357314149]
[null,null,null,null,null,"Pregunta8","P08.1",3,5,2,2,3,3,3,3,4,2,2,2,4,1,4,3,4]
[null,null,null,null,null,null,"P08.2",2,1,2,2,2,2,3,2,1,1,2,1,2,2,3,1,1]
[null,null,null,null,null,null,"P08.3",4,5,3,4,5,2,3,2,4,1,3,1,1,1,4,2,4]
[null,null,null,null,null,null,"P08.4",4,4,4,4,5,4,3,4,4,4,3,3,4,2,4,3,3]
[null,null,null,null,null,null,"P08.5",4,3,3,4,4,4,3,3,2,2,2,2,3,3,4,2,2]
[null,null,null,null,null,null,"P08.6",3,2,3,5,4,3,2,3,2,3,2,3,3,3,3,4,2]
[null,null,null,null,null,null,"P08.7",3,1,2,3,3,4,2,2,2,1,2,2,2,3,4,1,3]
[null,null,null,null,null,null,"P08.8",3,4,3,4,3,1,4,3,4,3,4,4,3,4,5,3,0]
[null,null,null,null,null,"Pregunta 9","P09.1",3,2,3,4,9,11,8,2,8,1,1,4,8,11,1,0,8]
[null,null,null,null,null,null,"P09.2",9,8,2,5,3,8,1,12,1,8,3,1,5,1,9,0,1]
[null,null,null,null,null,null,"P09.3",2,11,8,8,10,2,2,1,5,12,5,8,4,4,5,0,13]
[null,null,null,null,null,"Pregunta 10","P10.1",1,4,12,3,2,9,3,9,10,4,3,1,12,1,5,0,4]
[null,null,null,null,null,null,"P10.2",10,5,7,5,12,2,1,7,12,7,12,10,10,10,10,0,10]
[null,null,null,null,null,null,"P10.3",12,10,4,1,1,1,4,3,6,5,1,9,2,12,12,0,12]
[null,null,null,null,null,"Pregunta 11","P11.1",10,0,7,7,1,1,10,1,1,9,12,1,12,12,5,0,1]
[null,null,null,null,null,null,"P11.2",0,0,8,1,9,4,4,8,2,11,5,8,10,0,1,0,9]
[null,null,null,null,null,null,"P11.3",0,0,10,4,12,12,5,9,9,12,8,9,1,0,12,0,11]
[null,null,null,null,null,"Pregunta 12","P12.1",0,3,4,2,4,1,4,4,3,4,3,4,5,5,2,0,1]
[null,null,null,null,null,null,"P12.2",0,1,5,3,5,2,5,5,4,3,4,5,4,1,3,0,2]
[null,null,null,null,null,null,"P12.3",0,5,3,4,3,3,3,3,2,2,5,3,3,3,4,0,3]
[null,null,null,null,null,"Pregunta 7","P07",0,0,0,0,0,0,0,0,0,0,0,0,0,0,0,"1. Regulación y 2. Supervisión\nCon esto se refiere a un Marco Legal definido y por parte del Estado un mecanismo de control de eficiencia, transparencia y efectividad de la APP.\nNivel de Importancia 5 en ambas",0]
[null,null,null,null,null,"Pregunta 9 (otros)","P09.3.Otros",null,null,null,null,null,null,null,null,null,null,null,null,null,null,null,null,"Ordenamiento Territorial"]

{"sheet":"P","index":5,"n_rows":119,"n_cols":24,"rows_kept":119,"cut":false,"hidden":true,"merged":[]}
[]
[null,"Criterio","Descripción del criterio","Promedio del Criterio","Ponderación Intracategoría (%)","Categoría Promedio","Ponderación de las Categorías (%)","Ponderación de los Criterios (%)",null,"Indice",{"$f":"SUM(K3,K7,K17,K26,K39,K48)","v":{"$error":"#REF!"}},null,null,null,null,null,null,null,null,null,null,"Promedio Criterio",null,"Promedio Categoría"]
[null,"Categoría 1","Prioridad del proyecto APP para el país y el gobierno",{"$f":"SUM(D4:D6)","v":12.937500000000002},{"$f":"SUM(E4:E6)","v":1},4.4333333333333336,{"$f":"F3/$F$58","v":0.18194752819989465},{"$f":"SUM(H4:H6)","v":0.18194752819989463},null,{"$f":"SUMPRODUCT(E4:E6,J4:J6)","v":0},{"$f":"J3*G3","v":0},null,null,null,null,null,null,null,null,null,"Categoria 1",{"$f":"SUM(V4:V6)","v":12.937500000000002},{"$f":"V3=D3","v":true},4.4333333333333336]
[1,{"$f":"Cuestionario!C7","v":"Alineación con la planeación estratégica nacional"},"La modalidad de PPP está más adaptada a los proyectos reconocidos como prioridades por la Entidad Pública y perfectamente alineados con la planificación estratégica nacional.",4.25,{"$f":"D4/D3","v":0.32850241545893716},null,null,{"$f":"$G$3*E4","v":5.9770202500448476E-2},null,{"$f":"Cuestionario!J8","v":0},null,null,null,null,null,null,null,null,null,null,1,4.25]
[2,{"$f":"Cuestionario!C9","v":"Alineación con la planeación estratégica sectorial"},"La modalidad APP está más adaptada a los proyectos reconocidos como prioridades por la Entidad Pública y perfectamente alineados con la planificación estratégica sectorial.",4.166666666666667,{"$f":"D5/D3","v":0.322061191626409},null,null,{"$f":"$G$3*E5","v":5.8598237745537726E-2},null,{"$f":"Cuestionario!J10","v":0},null,null,null,null,null,null,null,null,null,null,2,4.166666666666667]
[3,{"$f":"Cuestionario!C13","v":"Reducción de la desigualdad territorial"},"La modalidad APP es más adecuada para proyectos que generan un impacto positivo en la población y que cubren una de sus necesidades o resuelven un problema público.",4.5208333333333339,{"$f":"D6/D3","v":0.34943639291465378},null,null,6.3579087953908431E-2,null,{"$f":"Cuestionario!J14","v":0},null,null,null,null,null,null,null,null,null,null,3,4.5208333333333339]
[null,"Categoría 2","Viabilidad del proyecto APP",{"$f":"SUM(D8:D16)","v":33.583991228070175},{"$f":"SUM(E8:E16)","v":1.0000000000000002},4.1624999999999996,{"$f":"F7/$F$58","v":0.17083231266136722},{"$f":"SUM(H8:H16)","v":0.17083231266136725},null,{"$f":"SUMPRODUCT(E8:E16,J8:J16)","v":0},{"$f":"J7*G7","v":0},null,null,null,null,3,null,null,null,null,"Categoria 2",{"$f":"SUM(V8:V16)","v":33.583991228070175},{"$f":"V7=D7","v":true},4.1624999999999996]
[4,{"$f":"Cuestionario!C16","v":"Complejidad del proyecto"},"La modalidad APP es más adecuada para proyectos que no son altamente complejos en términos de sus especificaciones técnicas, tecnológicas, de ingeniería/arquitectura, ambientales y de calidad de servicio.",2.8791666666666664,{"$f":"D8/$D$7","v":8.5730330475437988E-2},null,null,{"$f":"E8*$G$7","v":1.4645510620342361E-2},null,{"$f":"Cuestionario!J17","v":0},null,null,null,null,null,"Viabilidad del proyecto como una APP por categorías",null,null,null,null,4,2.8791666666666664]
[5,{"$f":"Cuestionario!C18","v":"Disponibilidad de recursos para financiar estudios"},"La modalidad APP es más adecuada para proyectos para los cuales la Entidad Pública tiene fondos para financiar los procesos de preparación y adquisición más costosos en general para proyectos de APP.",3.2833333333333332,{"$f":"D9/$D$7","v":9.7764834174594986E-2},null,null,{"$f":"E9*$G$7","v":1.6701392719001132E-2},null,{"$f":"Cuestionario!J19","v":0},null,null,null,null,null,"Nivel de importancia de los criterios de elegibilidad",null,null,null,null,5,3.2833333333333332]
[6,{"$f":"Cuestionario!C22","v":"Compromiso político con el proyecto"},"La modalidad APP es más adecuada para proyectos para los cuales el creador de políticas se compromete a promover el proyecto y el contrato tiene la posibilidad de ser firmado antes del final de su período.",4.1166666666666671,0.1225782438635785,null,null,2.094032488118416E-2,null,{"$f":"Cuestionario!J23","v":0},null,null,null,null,null,"Nivel de importancia de las categorías de elegibilidad",null,null,null,null,6,4.1166666666666671]
[7,{"$f":"Cuestionario!C24","v":"Grado de avances en los estudios"},"La modalidad APP es más adecuada para proyectos en los que hay un alto nivel de progreso en los estudios de preparación de proyectos.",4.0291666666666668,0.11997283584623522,null,null,2.049523700415494E-2,null,{"$f":"Cuestionario!J25","v":0},null,null,null,null,null,null,null,null,null,null,7,4.0291666666666668]
[8,{"$f":"Cuestionario!C26","v":"Rechazo del proyecto por parte de los involucrados"},"La modalidad APP es más adecuada para proyectos que no generan rechazo por parte de ciertos interesados, especialmente los usuarios, sino también la sociedad en general.",4.1124999999999998,0.12245417681513357,null,null,2.0919130220373245E-2,null,{"$f":"Cuestionario!J27","v":0},null,null,null,null,null,null,null,null,null,null,8,4.1124999999999998]
[9,{"$f":"Cuestionario!C28","v":"Número de involucrados"},"La modalidad APP es más adecuada para proyectos con un bajo número de partes interesadas, lo que facilita los acuerdos necesarios para su implementación.",3.5964912280701755,0.10708945234192879,null,null,1.8294338805210964E-2,null,{"$f":"Cuestionario!J29","v":0},null,null,null,null,null,null,null,null,null,null,9,3.5964912280701755]
[10,{"$f":"Cuestionario!C30","v":"Impacto ambiental"},"La modalidad APP es más adecuada para proyectos con bajos riesgos ambientales y/o ayuda a reducir los costos ambientales.",3.666666666666667,0.10917900263152741,null,null,1.8651301513605327E-2,null,{"$f":"Cuestionario!J31","v":0},null,null,null,null,null,null,null,null,null,null,10,3.666666666666667]
[11,{"$f":"Cuestionario!C32","v":"Cambio de ley y/o adquisición de terrenos"},"La modalidad APP es más adecuada para proyectos para los que no es necesario modificar una ley y/o adquirir tierras (o derechos de paso) cuyos derechos de propiedad están mal definidos.",3.7208333333333332,0.11079187426131132,null,null,1.892683210414722E-2,null,{"$f":"Cuestionario!J33","v":0},null,null,null,null,null,null,null,null,null,null,11,3.7208333333333332]
[12,{"$f":"Cuestionario!C20","v":"Líder del proyecto"},"La modalidad APP es más adecuada para proyectos en los que es posible identificar un líder (persona/institución) responsable de llevar a cabo el proyecto como una APP.",4.1791666666666671,0.12443924959025227,null,null,2.125824479334789E-2,null,{"$f":"Cuestionario!J21","v":0},null,null,null,null,null,null,null,null,null,null,12,4.1791666666666671]
[null,"Categoría 3","Características del proyecto adaptadas a la modalidad APP",{"$f":"SUM(D18:D25)","v":28.860707475209765},{"$f":"SUM(E18:E25)","v":1},3.7510869565217391,{"$f":"F17/$F$58","v":0.15394759394029989},{"$f":"SUM(H18:H25)","v":0.15394759394029986},null,{"$f":"SUMPRODUCT(E18:E25,J18:J25)","v":{"$error":"#REF!"}},{"$f":"J17*G17","v":{"$error":"#REF!"}},null,null,null,null,null,null,null,null,null,"Categoria 3",{"$f":"SUM(V18:V25)","v":28.860707475209765},{"$f":"V17=D17","v":true},3.7510869565217391]
[13,{"$f":"Cuestionario!C35","v":"Tamaño del proyecto o grupos de proyectos"},"La modalidad APP es más adecuada para proyectos (o grupo de proyectos) de tamaño suficiente para aprovechar las posibles economías de escala y para cubrir los mayores costos de transacción en caso de una APP.",3.9666666666666668,{"$f":"D18/$D$17","v":0.13744176819206114},null,null,{"$f":"E18*$G$17","v":2.1158829520068253E-2},null,{"$f":"Cuestionario!J36","v":0},null,null,null,null,null,null,null,null,null,null,{"$f":"A18","v":13},3.9666666666666668]
[14,{"$f":"Cuestionario!C37","v":"Tiempo de construcción del proyecto"},"Como los pagos solo comienzan una vez que el proyecto está en funcionamiento, la modalidad de una APP es más adecuada para proyectos con un tiempo de ejecución no demasiado largo.",3.3291666666666666,{"$f":"D19/$D$17","v":0.1153529125897656},null,null,{"$f":"E19*$G$17","v":1.775830334720014E-2},null,{"$f":"Cuestionario!J38","v":0},null,null,null,null,null,null,null,null,null,null,14,3.3291666666666666]
[15,{"$f":"Cuestionario!C39","v":"Urgencia del proyecto"},"La modalidad APP es más adecuada para proyectos que no son muy urgentes de implementar porque los procesos de preparación y adquisición generalmente son más largos para una APP.",3.2458333333333336,0.11246548048489037,null,null,1.7313790121988623E-2,null,{"$f":"Cuestionario!J40","v":0},null,null,null,null,null,null,null,null,null,null,15,3.2458333333333336]
[16,{"$f":"Cuestionario!C41","v":"Estabilidad de la tecnología del proyecto"},"La modalidad APP es más adecuada para proyectos que no son muy intensivos en tecnologías que experimentan cambios acelerados y se vuelven obsoletos rápidamente.",3.2369565217391303,0.112157906195458,null,null,1.7266439800172614E-2,null,{"$f":"Cuestionario!J42","v":0},null,null,null,null,null,null,null,null,null,null,16,3.2369565217391303]
[17,{"$f":"Cuestionario!C43","v":"Demanda de largo plazo del proyecto"},"La modalidad APP es más adecuada para proyectos que tienen una demanda estable a largo plazo y son fáciles de estimar a partir de estudios de demanda.",4.0291666666666668,0.13960734227071758,null,null,2.1492214438976896E-2,null,{"$f":"Cuestionario!J44","v":0},null,null,null,null,null,null,null,null,null,null,17,4.0291666666666668]
[18,{"$f":"Cuestionario!C45","v":"Definición de los servicios e indicadores de desempeño (KPI)"},"La modalidad APP es más adecuada para proyectos para los que es fácil definir en un contrato los servicios que se prestarán y formular indicadores de rendimiento para controlar su calidad.",4.1206140350877192,0.14277591908054119,null,null,2.198000921506427E-2,null,{"$f":"Cuestionario!J46","v":0},null,null,null,null,null,null,null,null,null,null,18,4.1206140350877192]
[19,{"$f":"Cuestionario!C47","v":"Independencia (interfaz) con otros proyectos"},"La modalidad APP es más adecuada para proyectos cuya ejecución y operación no dependen significativamente de la ejecución y/o operación de otros proyectos o infraestructura existente.",3.5043859649122808,0.12142411851554274,null,null,1.8692950891789625E-2,null,{"$f":"Cuestionario!J48","v":0},null,null,null,null,null,null,null,null,null,null,19,3.5043859649122808]
[20,{"$f":"Cuestionario!#REF!","v":{"$error":"#REF!"}},"La modalidad APP es más adecuada para proyectos cuyo objetivo es la prestación directa o indirecta de un servicio público como apoyo para la prestación de un servicio público.",3.4279176201372996,0.11877455267102335,null,null,1.8285056605039464E-2,null,{"$f":"Cuestionario!#REF!","v":{"$error":"#REF!"}},null,null,null,null,null,null,null,null,null,null,20,3.4279176201372996]
[null,"Categoría 4","Bancabilidad del proyecto APP",{"$f":"SUM(D27:D38)","v":42.829166666666666},{"$f":"SUM(E27:E38)","v":1},4.0899122807017543,{"$f":"F26/$F$58","v":0.16785325489355141},{"$f":"SUM(H27:H38)","v":0.16785325489355143},null,{"$f":"SUMPRODUCT(E27:E38,J27:J38)","v":{"$error":"#REF!"}},{"$f":"J26*G26","v":{"$error":"#REF!"}},null,null,null,null,null,null,null,null,null,"Categoria 4",{"$f":"SUM(V27:V38)","v":42.829166666666666},{"$f":"V26=D26","v":true},4.0899122807017543]
[21,{"$f":"Cuestionario!C50","v":"Proyecto autofinanciable"},"La modalidad APP es más adecuada para proyectos que generan ingresos (que no sean fuentes públicas) suficientes para cubrir los costos de la APP.",3.979166666666667,{"$f":"D27/$D$26","v":9.2907870415410071E-2},null,null,{"$f":"E27*$G$26","v":1.5594888454454871E-2},null,{"$f":"Cuestionario!J51","v":0},null,null,null,null,null,null,null,null,null,null,21,3.979166666666667]
[22,{"$f":"Cuestionario!C52","v":"Clima de inversión y condiciones macroeconómicas"},"La modalidad APP es más adecuada para proyectos que tienen lugar en un clima de inversión favorable y condiciones macroeconómicas estables.",4.0083333333333329,{"$f":"D28/$D$26","v":9.3588870512695779E-2},null,null,{"$f":"E28*$G$26","v":1.57091965373671E-2},null,{"$f":"Cuestionario!J53","v":0},null,null,null,null,null,null,null,null,null,null,22,4.0083333333333329]
[23,{"$f":"Cuestionario!C54","v":"Atractividad del proyecto para los sectores privado y financiero"},"La modalidad APP es más adecuada para proyectos percibidos como un mercado rentable y capaz de atraer inversores privados e instituciones financieras.",3.958333333333333,9.2421441774491672E-2,null,null,1.551323982380327E-2,null,{"$f":"Cuestionario!J55","v":0},null,null,null,null,null,null,null,null,null,null,23,3.958333333333333]
[24,{"$f":"Cuestionario!C56","v":"Atractividad del proyecto para los organismos internacionales"},"La modalidad APP es más adecuada para proyectos atractivos para organizaciones internacionales (en línea con sus objetivos estratégicos), lo que reduce el costo del proyecto APP para el país.",3.458333333333333,8.0747154392450629E-2,null,null,1.3553672688164965E-2,null,{"$f":"Cuestionario!J57","v":0},null,null,null,null,null,null,null,null,null,null,24,3.458333333333333]
[25,{"$f":"Cuestionario!#REF!","v":{"$error":"#REF!"}},"La modalidad APP es más adecuada para proyectos que son atractivos para la diáspora del país o la región del proyecto, ya que representa una fuente potencial de ingresos para el proyecto.",2.6833333333333336,6.2652008950286997E-2,null,null,1.0516343627925587E-2,null,{"$f":"Cuestionario!#REF!","v":{"$error":"#REF!"}},null,null,null,null,null,null,null,null,null,null,25,2.6833333333333336]
[26,{"$f":"Cuestionario!C58","v":"Costo de financiamiento"},"La modalidad APP es más adecuada para proyectos que pueden obtener una puntuación de crédito favorable y cuyo costo de financiamiento no se considera demasiado alto.",3.4541666666666666,8.0649868664266947E-2,null,null,1.3537342962034644E-2,null,{"$f":"Cuestionario!J59","v":0},null,null,null,null,null,null,null,null,null,null,26,3.4541666666666666]
[27,{"$f":"Cuestionario!C60","v":"Capacidad de los mercados locales de capital"},"La modalidad APP es más adecuada para proyectos que tienen lugar en un entorno donde los mercados de capital locales están bien desarrollados.",3.1916666666666664,7.4520867788695391E-2,null,null,1.2508570215824532E-2,null,{"$f":"Cuestionario!J61","v":0},null,null,null,null,null,null,null,null,null,null,27,3.1916666666666664]
[28,{"$f":"Cuestionario!C62","v":"Impacto sobre las finanzas públicas"},"La modalidad APP es más adecuada para proyectos que tienen un impacto sostenible en el presupuesto y la deuda de la Entidad Pública, ya sea por su costo presupuestario directo, pero también por los posibles pasivos potenciales generados por el proyecto.",3.7625000000000002,8.784901254985894E-2,null,null,1.4745742695678269E-2,null,{"$f":"Cuestionario!J63","v":0},null,null,null,null,null,null,null,null,null,null,28,3.7625000000000002]
[29,{"$f":"Cuestionario!C64","v":"Experiencia del sector privado en el país"},"La modalidad APP es más adecuada para proyectos para los cuales existe un alto nivel de experiencia en el país en el desarrollo de proyectos similares.",3.3250000000000002,7.7634011090573024E-2,null,null,1.303112145199475E-2,null,{"$f":"Cuestionario!J65","v":0},null,null,null,null,null,null,null,null,null,null,29,3.3250000000000002]
[30,{"$f":"Cuestionario!C66","v":"Experiencia del sector privado en países semejantes"},"La modalidad APP es más adecuada para proyectos para los cuales hay en países comparables un alto nivel de experiencia en el desarrollo de proyectos similares.",3.6291666666666664,8.4735869247981321E-2,null,null,1.4223191459508053E-2,null,{"$f":"Cuestionario!J67","v":0},null,null,null,null,null,null,null,null,null,null,30,3.6291666666666664]
[31,{"$f":"Cuestionario!#REF!","v":{"$error":"#REF!"}},"La modalidad APP es más adecuada para proyectos para los cuales existe un alto nivel de experiencia en países desarrollados en el desarrollo de proyectos similares.",3.2791666666666668,7.6563868080552586E-2,null,null,1.2851494464561238E-2,null,{"$f":"Cuestionario!#REF!","v":{"$error":"#REF!"}},null,null,null,null,null,null,null,null,null,null,31,3.2791666666666668]
[32,{"$f":"Cuestionario!C68","v":"Capacidad del sector privado"},"La modalidad APP es más adecuada para proyectos para los cuales existen muchas empresas a nivel nacional e internacional con una alta capacidad técnica y de gestión para brindar servicios de proyectos.",4.0999999999999996,9.5729156532736642E-2,null,null,1.6068450512234125E-2,null,{"$f":"Cuestionario!J69","v":0},null,null,null,null,null,null,null,null,null,null,32,4.0999999999999996]
[null,"Categoría 5","Entorno del proyecto conducente a la modalidad APP",{"$f":"SUM(D40:D47)","v":32.791228070175436},{"$f":"SUM(E40:E47)","v":1.0000000000000002},3.85,{"$f":"F39/$F$58","v":0.15800706396306641},{"$f":"SUM(H40:H47)","v":0.15800706396306644},null,{"$f":"SUMPRODUCT(E40:E47,J40:J47)","v":{"$error":"#REF!"}},{"$f":"J39*G39","v":{"$error":"#REF!"}},null,null,null,null,null,null,null,null,null,"Categoria 5",{"$f":"SUM(V40:V47)","v":32.791228070175436},{"$f":"V39=D39","v":true},3.85]
[33,{"$f":"Cuestionario!C71","v":"Riesgo político"},"La modalidad APP es más adecuada para proyectos para los cuales el sector privado no está en riesgo debido a un cambio de mayoría a expropiar.",4.3166666666666664,{"$f":"D40/$D$39","v":0.13164089668824569},null,null,{"$f":"E40*$G$39","v":2.0800191583175053E-2},null,{"$f":"Cuestionario!J72","v":0},null,null,null,null,null,null,null,null,null,null,33,4.3166666666666664]
[34,{"$f":"Cuestionario!C73","v":"Experiencia y capacidad del sector público"},"La modalidad APP es más adecuada para proyectos en los que el sector público tiene la capacidad y la experiencia para llevar a cabo una APP y garantizar su supervisión.",3.9249999999999998,{"$f":"D41/$D$39","v":0.11969664544433151},null,null,{"$f":"E41*$G$39","v":1.8912915512886971E-2},null,{"$f":"Cuestionario!J74","v":0},null,null,null,null,null,null,null,null,null,null,34,3.9249999999999998]
[35,{"$f":"Cuestionario!C75","v":"Cohesión institucional"},"La modalidad APP es más adecuada para proyectos para los cuales existe una fuerte cohesión institucional entre las diferentes partes del sector público involucrado en el proyecto en sus diferentes etapas.",4.020833333333333,0.12261917500401263,null,null,1.9374695827957457E-2,null,{"$f":"Cuestionario!J76","v":0},null,null,null,null,null,null,null,null,null,null,35,4.020833333333333]
[36,{"$f":"Cuestionario!#REF!","v":{"$error":"#REF!"}},"La modalidad APP es más adecuada para proyectos para los que existe un marco legal sólido para el desarrollo de la APP.",4.1541666666666668,0.12668530308704726,null,null,2.001717278805553E-2,null,{"$f":"Cuestionario!#REF!","v":{"$error":"#REF!"}},null,null,null,null,null,null,null,null,null,null,36,4.1541666666666668]
[37,{"$f":"Cuestionario!#REF!","v":{"$error":"#REF!"}},"La modalidad APP es más adecuada para proyectos que pueden generar competencia durante el proceso de adquisición para obtener las mejores condiciones para el sector público.",4.3166666666666664,0.13164089668824569,null,null,2.0800191583175053E-2,null,{"$f":"Cuestionario!#REF!","v":{"$error":"#REF!"}},null,null,null,null,null,null,null,null,null,null,37,4.3166666666666664]
[38,{"$f":"Cuestionario!C77","v":"Flexibilidad en el contrato"},"La modalidad APP es más adecuada para proyectos que se llevan a cabo en un entorno que garantiza altos niveles de transparencia durante el proceso de adquisición.",4.3453947368421053,0.13251698678508375,null,null,2.0938620007143555E-2,null,{"$f":"Cuestionario!J78","v":0},null,null,null,null,null,null,null,null,null,null,38,4.3453947368421053]
[39,{"$f":"Cuestionario!C79","v":"Competencia al momento de la licitación"},"La modalidad APP es más adecuada para proyectos para los cuales el contrato (y el modelo de negocio) se pueden estructurar de manera flexible para permitir el ajuste a eventos imprevistos y contingencias y para adaptarse a la complejidad del proyecto a lo largo del tiempo. Lo que permite limitar los riesgos de renegociaciones del contrato.",4.0791666666666666,0.12439810604034028,null,null,1.9655779498000365E-2,null,{"$f":"Cuestionario!J80","v":0},null,null,null,null,null,null,null,null,null,null,39,4.0791666666666666]
[40,{"$f":"Cuestionario!C81","v":"Configuración monopolística"},"La modalidad APP es más adecuada para proyectos para los cuales hay al menos un sustituto, lo que otorga menos poder de negociación al sector privado una vez que se firma el contrato.",3.6333333333333333,0.11080199026269329,null,null,1.7507497162672438E-2,null,{"$f":"Cuestionario!J82","v":0},null,null,null,null,null,null,null,null,null,null,40,3.6333333333333333]
[null,"Categoría 6","Generación de valor a través de la modalidad APP",{"$f":"SUM(D49:D57)","v":35.308333333333337},{"$f":"SUM(E49:E57)","v":0.99999999999999989},4.0791666666666666,{"$f":"F48/$F$58","v":0.16741224634182036},{"$f":"SUM(H49:H57)","v":0.16741224634182034},null,{"$f":"SUMPRODUCT(E49:E57,J49:J57)","v":0},{"$f":"J48*G48","v":0},null,null,null,null,null,null,null,null,null,"Categoria 6",{"$f":"SUM(V49:V57)","v":35.308333333333337},{"$f":"V48=D48","v":true},4.0791666666666666]
[41,{"$f":"Cuestionario!C84","v":"Innovaciones"},"La modalidad APP es más adecuada para proyectos en los que el sector privado puede implementar innovaciones técnicas y/o de gestión.",3.625,{"$f":"D49/$D$48","v":0.10266698135473211},null,null,{"$f":"E49*$G$48","v":1.7187709973729492E-2},null,{"$f":"Cuestionario!J85","v":0},null,null,null,null,null,null,null,null,null,null,41,3.625]
[42,{"$f":"Cuestionario!C86","v":"Transferencia y gestión de riesgos"},"La modalidad APP es más adecuada para proyectos para los cuales el sector privado puede transferir tecnologías usadas en otros países o sectores al país o sector de implementación de la APP.",3.65,{"$f":"D50/$D$48","v":0.10337502950200612},null,null,{"$f":"E50*$G$48","v":1.7306245904582795E-2},null,{"$f":"Cuestionario!J87","v":0},null,null,null,null,null,null,null,null,null,null,42,3.65]
[43,{"$f":"Cuestionario!C88","v":"Transferencia de tecnologías"},"La modalidad APP es más adecuada para proyectos donde es posible transferir al sector privado una cantidad sustancial de riesgo que el sector privado será más eficiente de administrar.",4.1208333333333336,0.11670993627566674,null,null,1.9538672602320076E-2,null,{"$f":"Cuestionario!J89","v":0},null,null,null,null,null,null,null,null,null,null,43,4.1208333333333336]
[44,{"$f":"Cuestionario!C90","v":"Sobrecostos y sobreplazos"},"La modalidad APP es más adecuada para proyectos para los cuales proyectos similares, desarrollados por la modalidad de contratación tradicional, tienen costos y retrasos adicionales significativos.",3.7583333333333333,0.10644323814019352,null,null,1.7819901604947126E-2,null,{"$f":"Cuestionario!J91","v":0},null,null,null,null,null,null,null,null,null,null,44,3.7583333333333333]
[45,{"$f":"Cuestionario!C92","v":"Integración de funciones (bundling)"},"La modalidad APP es más adecuada para proyectos para los cuales existen beneficios potenciales significativos, principalmente reducción de costos, para integrar las diferentes fases del proyecto en el mismo contrato.",4.0041666666666664,0.113405711588388,null,null,1.8985504925004643E-2,null,{"$f":"Cuestionario!J93","v":0},null,null,null,null,null,null,null,null,null,null,45,4.0041666666666664]
[46,{"$f":"Cuestionario!C94","v":"Calidad del servicio"},"La modalidad APP es más adecuada para proyectos para los cuales la prestación privada mejorará significativamente la calidad del servicio en comparación con la modalidad de gestión tradicional.",4.1958333333333329,0.11883408071748876,null,null,1.9894280394879994E-2,null,{"$f":"Cuestionario!J95","v":0},null,null,null,null,null,null,null,null,null,null,46,4.1958333333333329]
[47,{"$f":"Cuestionario!C96","v":"Operación y mantenimiento garantizados"},"La modalidad APP es más adecuada para proyectos para los cuales proyectos similares, desarrollados por la modalidad de contratación tradicional, presentan problemas en cuanto a la disponibilidad de recursos para garantizar niveles adecuados de operación y mantenimiento.",4.0541666666666671,0.11482180788293604,null,null,1.922257678671126E-2,null,{"$f":"Cuestionario!J97","v":0},null,null,null,null,null,null,null,null,null,null,47,4.0541666666666671]
[48,{"$f":"Cuestionario!C98","v":"Optimización de los ingresos comerciales\n"},"La modalidad APP es más adecuada para proyectos para los cuales la provisión privada puede generar mayores ingresos comerciales que la modalidad de contratación tradicional.",3.7791666666666668,0.10703327826292187,null,null,1.7918681547324882E-2,null,{"$f":"Cuestionario!J99","v":0},null,null,null,null,null,null,null,null,null,null,48,3.7791666666666668]
[49,{"$f":"Cuestionario!C100","v":"Reducción de la espera pública\n"},"La modalidad APP es más adecuada para proyectos para los cuales existen beneficios potenciales significativos para acelerar el ritmo de la inversión pública y que estos proyectos se realizan antes que con la modalidad de contratación tradicional.",4.1208333333333336,0.11670993627566674,null,null,1.9538672602320076E-2,null,{"$f":"Cuestionario!J101","v":0},null,null,null,null,null,null,null,null,null,null,49,4.1208333333333336]
[null,"Cuenta el número de celdas en blanco ( < 4 )",null,{"$f":"COUNTIF(D4:D6,\"0\")+COUNTIF(D8:D16,\"0\")+COUNTIF(D18:D25,\"0\")+COUNTIF(D27:D38,\"0\")+COUNTIF(D40:D47,\"0\")+COUNTIF(D49:D57,\"0\")","v":0},null,{"$f":"F48+F39+F26+F17+F7+F3","v":24.365999237223495},{"$f":"G48+G39+G26+G17+G7+G3","v":1},{"$f":"H48+H39+H26+H17+H7+H3","v":1},null,{"$f":"COUNTIF(J4:J6,\"0\")+COUNTIF(J8:J16,\"0\")+COUNTIF(J18:J25,\"0\")+COUNTIF(J27:J38,\"0\")+COUNTIF(J40:J47,\"0\")+COUNTIF(J49:J57,\"0\")","v":44}]
[]
[null,null,null,null,null,null,null,null,null,null,null,null,null,null,null,null,null,null,null,null,null,"Espera pública reducida",7.1]
[null,null,null,null,null,null,null,null,null,null,null,null,null,null,null,null,null,null,null,null,null,"Mayor calidad de servicio",4.9000000000000004]
[null,null,null,null,null,null,null,null,null,null,null,null,null,null,null,null,null,null,null,null,null,"Garantía de operación y mantenimiento.",4.2]
[null,null,null,null,null,null,null,null,null,null,null,null,null,null,null,null,null,null,null,null,null,"Integración de las fases del proyecto.",4.0999999999999996]
[null,null,null,null,null,null,null,null,null,null,null,null,null,null,null,null,null,null,null,null,null,"Maximizando los ingresos del negocio",2.6]
[]
[]
[]
[]
[]
[null,"Criterios",null,"Criterios promedio",null,"Categoría","Categoría media"]
[1,"Alineación con la planeación estratégica nacional",null,4.25,1,"Prioridad del proyecto APP para el país y el gobierno",{"$f":"F3","v":4.4333333333333336},null,null,"Prioridad del proyecto APP para el país y el gobierno"]
[2,"Alineación con la planeación estratégica sectorial",null,4.166666666666667,2,"Viabilidad del proyecto APP",{"$f":"F7","v":4.1624999999999996},null,null,"Viabilidad del proyecto APP"]
[3,"Impacto positivo del proyecto para la sociedad",null,4.5208333333333339,3,"Características del proyecto adaptadas a la modalidad APP",{"$f":"F17","v":3.7510869565217391},null,null,"Características del proyecto adaptadas a la modalidad APP"]
[4,"Complejidad del proyecto",null,2.8791666666666664,4,"Bancabilidad del proyecto APP",{"$f":"F26","v":4.0899122807017543},null,null,"Bancabilidad del proyecto APP"]
[5,"Disponibilidad de recursos para financiar estudios",null,3.2833333333333332,5,"Entorno del proyecto conducente a la modalidad APP",{"$f":"F39","v":3.85},null,null,"Entorno del proyecto conducente a la modalidad APP"]
[6,"Compromiso político con el proyecto",null,4.1166666666666671,6,"Generación de valor a través de la modalidad APP",{"$f":"F48","v":4.0791666666666666},null,null,"Generación de valor a través de la modalidad APP"]
[7,"Grado de avances en los estudios",null,4.0291666666666668]
[8,"Rechazo del proyecto por parte de los involucrados",null,4.1124999999999998]
[9,"Número de involucrados",null,3.5964912280701755]
[10,"Impacto ambiental",null,3.666666666666667]
[11,"Cambio de ley y/o adquisición de terrenos",null,3.7208333333333332]
[12,"Líder del proyecto",null,4.1791666666666671]
[13,"Tamaño del proyecto o grupos de proyectos",null,3.9666666666666668]
[14,"Tiempo de construcción del proyecto",null,3.3291666666666666]
[15,"Urgencia del proyecto",null,3.2458333333333336]
[16,"Estabilidad de la tecnología del proyecto",null,3.2369565217391303]
[17,"Demanda de largo plazo del proyecto",null,4.0291666666666668]
[18,"Definición de los servicios e indicadores de desempeño (KPI)",null,4.1206140350877192]
[19,"Independencia (interfaz) con otros proyectos",null,3.5043859649122808]
[20,"Provisión de un servicio público",null,3.4279176201372996]
[21,"Proyecto autofinanciable",null,3.979166666666667]
[22,"Clima de inversión y condiciones macroeconómicas",null,4.0083333333333329]
[23,"Atractividad del proyecto para los sectores privado y financiero",null,3.958333333333333]
[24,"Atractividad del proyecto para los organismos internacionales",null,3.458333333333333]
[25,"Atractividad del proyecto para la diáspora",null,2.6833333333333336]
[26,"Costo de financiamiento",null,3.4541666666666666]
[27,"Capacidad de los mercados locales de capital",null,3.1916666666666664]
[28,"Impacto sobre las finanzas públicas",null,3.7625000000000002]
[29,"Experiencia del sector privado en el país",null,3.3250000000000002]
[30,"Experiencia del sector privado en países comparables",null,3.6291666666666664]
[31,"Experiencia del sector privado en países desarrollados",null,3.2791666666666668]
[32,"Capacidad del sector privado",null,4.0999999999999996]
[33,"Riesgo político",null,4.3166666666666664]
[34,"Experiencia y capacidad del sector público",null,3.9249999999999998]
[35,"Cohesión institucional",null,4.020833333333333]
[36,"Marco legal favorable a la modalidad APP",null,4.1541666666666668]
[37,"Transparencia de los procesos de licitación",null,4.3166666666666664]
[38,"Competencia al momento de la licitación",null,4.3453947368421053]
[39,"Flexibilidad en el contrato",null,4.0791666666666666]
[40,"Configuración monopolística",null,3.6333333333333333]
[41,"Innovaciones",null,3.625]
[42,"Transferencia y gestión de riesgos",null,3.65]
[43,"Transferencia de tecnologías",null,4.1208333333333336]
[44,"Sobrecostos y sobreplazos",null,3.7583333333333333]
[45,"Integración de funciones (bundling)",null,4.0041666666666664]
[46,"Calidad del servicio",null,4.1958333333333329]
[47,"Operación y mantenimiento garantizados",null,4.0541666666666671]
[48,"Optimización de los ingresos comerciales\n",null,3.7791666666666668]
[49,"Reducción de la espera pública\n",null,4.1208333333333336]